DepartmentFamily,Entity,Date,ExpenseType,ExpenseArea,Supplier,TransactionNumber,Amount,VATRegistrationNo
BIS,The Insolvency Service,05/10/2015,Accommodation,ESTATES,ACENES HOUSE LTD                                            ,BA0000290250,"10,500.00",182696958
BIS,The Insolvency Service,05/10/2015,Accommodation,ESTATES,ACENES HOUSE LTD                                            ,BA0000290250,"2,800.00",182696958
BIS,The Insolvency Service,14/10/2015,Training Costs,PEOPLE & CAPABILITY                                                                                 ,ADVENT IM LTD                                               ,BA0000290503,300.00,803052184
BIS,The Insolvency Service,13/10/2015,Agency Workers,FINANCE AND COMMERCIAL                                                                              ,ALLEN LANE,BA0000290461,"2,675.52",
BIS,The Insolvency Service,05/10/2015,Agency Workers,FINANCE AND COMMERCIAL                                                                              ,ALLEN LANE LIMITED,BA0000290260,"2,395.49",835970985
BIS,The Insolvency Service,07/10/2015,Employee Related Costs,FINANCE AND COMMERCIAL,ALLEN LANE LIMITED,BA0000290337,"11,627.55",835970985
BIS,The Insolvency Service,12/10/2015,Agency Workers,INFORMATION TECHNOLOGY                                                                              ,ALLEN LANE LIMITED,BA0000290409,"2,675.52",835970985
BIS,The Insolvency Service,12/10/2015,Agency Workers,INFORMATION TECHNOLOGY                                                                              ,ALLEN LANE LIMITED,BA0000290419,"2,675.52",835970985
BIS,The Insolvency Service,20/10/2015,Agency Workers,FINANCE AND COMMERCIAL                                                                              ,ALLEN LANE LIMITED,BA0000290633,"8,384.21",835970985
BIS,The Insolvency Service,28/10/2015,Agency Workers,FINANCE AND COMMERCIAL                                                                              ,ALLEN LANE LIMITED,BA0000290728,"2,140.42",835970985
BIS,The Insolvency Service,28/10/2015,Agency Workers,FINANCE AND COMMERCIAL                                                                              ,ALLEN LANE LIMITED,BA0000290729,"5,351.04",835970985
BIS,The Insolvency Service,29/10/2015,Agency Workers,FINANCE AND COMMERCIAL,ALLEN LANE LIMITED,BA0000290828,"8,592.70",835970985
BIS,The Insolvency Service,29/10/2015,Agency Workers,INFORMATION TECHNOLOGY                                                                              ,ALLEN LANE LIMITED,BA0000290829,"2,675.52",835970985
BIS,The Insolvency Service,09/10/2015,Accommodation,FINANCE AND COMMERCIAL                                                                              ,AMARYLLIS,BA0000290405,"11,345.69",
BIS,The Insolvency Service,14/10/2015,Investigation and Enforcement Costs,INVESTIGATIONS & ENFORCEMENT                                                                        ,APL ACCOUNTANTS LLP,BA0000290519,"2,612.50",854660115
BIS,The Insolvency Service,22/10/2015,Accommodation,FINANCE AND COMMERCIAL                                                                              ,ARCADIS LLP                                                 ,BA0000290689,600.80,660476038
BIS,The Insolvency Service,22/10/2015,Accommodation,FINANCE AND COMMERCIAL                                                                              ,ARCADIS LLP                                                 ,BA0000290689,"3,004.00",660476038
BIS,The Insolvency Service,30/10/2015,Accommodation,FINANCE AND COMMERCIAL                                                                              ,ARCADIS LLP                                                 ,BA0000290853,800.00,660476038
BIS,The Insolvency Service,30/10/2015,Accommodation,FINANCE AND COMMERCIAL                                                                              ,ARCADIS LLP                                                 ,BA0000290853,"4,000.00",660476038
BIS,The Insolvency Service,01/10/2015,Accommodation,OFFICIAL RECEIVER SERVICES                                                                          ,ARGOS RETAIL GROUP,BA0000290523,22.99,145899025
BIS,The Insolvency Service,14/10/2015,Computer and IT Systems,FINANCE AND COMMERCIAL                                                                              ,ATLASSIAN                                                   ,BA0000290634,"1,631.75",
BIS,The Insolvency Service,14/10/2015,Computer and IT Systems,PROJECTS                                                                                            ,ATLASSIAN                                                   ,BA0000290634,543.91,
BIS,The Insolvency Service,14/10/2015,Computer and IT Systems,PROJECTS                                                                                            ,ATLASSIAN                                                   ,BA0000290634,543.92,
BIS,The Insolvency Service,14/10/2015,Computer and IT Systems,INFORMATION TECHNOLOGY                                                                              ,ATOS IT SERVICES UK LTD,BA0000290276,"-57,567.96",
BIS,The Insolvency Service,14/10/2015,Computer and IT Systems,INFORMATION TECHNOLOGY                                                                              ,ATOS IT SERVICES UK LTD,BA0000290289,"202,526.84",
BIS,The Insolvency Service,14/10/2015,Computer and IT Systems,INFORMATION TECHNOLOGY                                                                              ,ATOS IT SERVICES UK LTD,BA0000290518,"19,072.88",
BIS,The Insolvency Service,28/10/2015,Computer and IT Systems,INFORMATION TECHNOLOGY                                                                              ,ATOS IT SERVICES UK LTD,BA0000290618,"9,360.00",
BIS,The Insolvency Service,22/10/2015,Telecoms,INFORMATION TECHNOLOGY                                                                              ,AZZURRI COMMUNICATIONS LTD                                  ,BA0000290696,"25,537.86",
BIS,The Insolvency Service,22/10/2015,Employee Related Costs,PEOPLE & CAPABILITY                                                                                 ,AZZURRI COMMUNICATIONS LTD                                  ,BA0000290693,261.60,
BIS,The Insolvency Service,23/10/2015,Telecoms,FINANCE AND COMMERCIAL                                                                              ,AZZURRI COMMUNICATIONS LTD                                  ,BA0000290699,"1,800.00",
BIS,The Insolvency Service,23/10/2015,Telecoms,FINANCE AND COMMERCIAL                                                                              ,AZZURRI COMMUNICATIONS LTD                                  ,BA0000290701,"1,800.00",
BIS,The Insolvency Service,28/10/2015,Telecoms,OFFICIAL RECEIVER SERVICES                                                                          ,AZZURRI COMMUNICATIONS LTD                                  ,BA0000290819,38.60,
BIS,The Insolvency Service,28/10/2015,Telecoms,OFFICIAL RECEIVER SERVICES                                                                          ,AZZURRI COMMUNICATIONS LTD                                  ,BA0000290819,193.00,
BIS,The Insolvency Service,15/10/2015,Accommodation,FINANCE AND COMMERCIAL                                                                              ,BANNER BUSINESS SERVICES Ltd.,BA0000290539,102.60,731860439
BIS,The Insolvency Service,15/10/2015,Accommodation,FINANCE AND COMMERCIAL                                                                              ,BANNER BUSINESS SERVICES Ltd.,BA0000290539,942.30,731860439
BIS,The Insolvency Service,15/10/2015,Accommodation,OFFICIAL RECEIVER SERVICES                                                                          ,BANNER BUSINESS SERVICES Ltd.,BA0000290539,7.20,731860439
BIS,The Insolvency Service,15/10/2015,Accommodation,OFFICIAL RECEIVER SERVICES                                                                          ,BANNER BUSINESS SERVICES Ltd.,BA0000290539,27.00,731860439
BIS,The Insolvency Service,15/10/2015,Accommodation,OFFICIAL RECEIVER SERVICES                                                                          ,BANNER BUSINESS SERVICES Ltd.,BA0000290539,36.54,731860439
BIS,The Insolvency Service,15/10/2015,Accommodation,OFFICIAL RECEIVER SERVICES                                                                          ,BANNER BUSINESS SERVICES Ltd.,BA0000290539,38.34,731860439
BIS,The Insolvency Service,15/10/2015,Accommodation,OFFICIAL RECEIVER SERVICES                                                                          ,BANNER BUSINESS SERVICES Ltd.,BA0000290539,41.86,731860439
BIS,The Insolvency Service,15/10/2015,Accommodation,OFFICIAL RECEIVER SERVICES                                                                          ,BANNER BUSINESS SERVICES Ltd.,BA0000290539,56.11,731860439
BIS,The Insolvency Service,15/10/2015,Accommodation,OFFICIAL RECEIVER SERVICES                                                                          ,BANNER BUSINESS SERVICES Ltd.,BA0000290539,67.15,731860439
BIS,The Insolvency Service,15/10/2015,Accommodation,OFFICIAL RECEIVER SERVICES                                                                          ,BANNER BUSINESS SERVICES Ltd.,BA0000290539,70.40,731860439
BIS,The Insolvency Service,15/10/2015,Accommodation,OFFICIAL RECEIVER SERVICES                                                                          ,BANNER BUSINESS SERVICES Ltd.,BA0000290539,74.70,731860439
BIS,The Insolvency Service,15/10/2015,Accommodation,OFFICIAL RECEIVER SERVICES                                                                          ,BANNER BUSINESS SERVICES Ltd.,BA0000290539,82.44,731860439
BIS,The Insolvency Service,15/10/2015,Accommodation,OFFICIAL RECEIVER SERVICES                                                                          ,BANNER BUSINESS SERVICES Ltd.,BA0000290539,93.50,731860439
BIS,The Insolvency Service,15/10/2015,Accommodation,OFFICIAL RECEIVER SERVICES                                                                          ,BANNER BUSINESS SERVICES Ltd.,BA0000290539,135.76,731860439
BIS,The Insolvency Service,15/10/2015,Accommodation,OFFICIAL RECEIVER SERVICES                                                                          ,BANNER BUSINESS SERVICES Ltd.,BA0000290539,147.30,731860439
BIS,The Insolvency Service,15/10/2015,Accommodation,OFFICIAL RECEIVER SERVICES                                                                          ,BANNER BUSINESS SERVICES Ltd.,BA0000290539,196.20,731860439
BIS,The Insolvency Service,19/10/2015,Office Supplies and Services,FINANCE AND COMMERCIAL                                                                              ,BANNER BUSINESS SERVICES Ltd.,BA0000290594,309.82,731860439
BIS,The Insolvency Service,19/10/2015,Office Supplies and Services,FINANCE AND COMMERCIAL                                                                              ,BANNER BUSINESS SERVICES Ltd.,BA0000290594,"1,961.93",731860439
BIS,The Insolvency Service,19/10/2015,Office Supplies and Services,FINANCE AND COMMERCIAL                                                                              ,BANNER BUSINESS SERVICES Ltd.,BA0000290594,"2,021.72",731860439
BIS,The Insolvency Service,19/10/2015,Office Supplies and Services,FINANCE AND COMMERCIAL                                                                              ,BANNER BUSINESS SERVICES Ltd.,BA0000290550,"1,081.79",731860439
BIS,The Insolvency Service,19/10/2015,Office Supplies and Services,FINANCE AND COMMERCIAL                                                                              ,BANNER BUSINESS SERVICES Ltd.,BA0000290550,"1,955.36",731860439
BIS,The Insolvency Service,19/10/2015,Office Supplies and Services,FINANCE AND COMMERCIAL                                                                              ,BANNER BUSINESS SERVICES Ltd.,BA0000290550,"2,691.20",731860439
BIS,The Insolvency Service,19/10/2015,Office Supplies and Services,INVESTIGATIONS & ENFORCEMENT                                                                        ,BANNER BUSINESS SERVICES Ltd.,BA0000290594,36.20,731860439
BIS,The Insolvency Service,19/10/2015,Office Supplies and Services,INVESTIGATIONS & ENFORCEMENT                                                                        ,BANNER BUSINESS SERVICES Ltd.,BA0000290550,337.20,731860439
BIS,The Insolvency Service,19/10/2015,Office Supplies and Services,OFFICIAL RECEIVER SERVICES                                                                          ,BANNER BUSINESS SERVICES Ltd.,BA0000290594,29.05,731860439
BIS,The Insolvency Service,19/10/2015,Office Supplies and Services,OFFICIAL RECEIVER SERVICES                                                                          ,BANNER BUSINESS SERVICES Ltd.,BA0000290594,71.99,731860439
BIS,The Insolvency Service,19/10/2015,Office Supplies and Services,OFFICIAL RECEIVER SERVICES                                                                          ,BANNER BUSINESS SERVICES Ltd.,BA0000290594,90.28,731860439
BIS,The Insolvency Service,19/10/2015,Office Supplies and Services,OFFICIAL RECEIVER SERVICES                                                                          ,BANNER BUSINESS SERVICES Ltd.,BA0000290594,185.52,731860439
BIS,The Insolvency Service,19/10/2015,Office Supplies and Services,OFFICIAL RECEIVER SERVICES                                                                          ,BANNER BUSINESS SERVICES Ltd.,BA0000290594,187.30,731860439
BIS,The Insolvency Service,19/10/2015,Office Supplies and Services,OFFICIAL RECEIVER SERVICES                                                                          ,BANNER BUSINESS SERVICES Ltd.,BA0000290594,204.41,731860439
BIS,The Insolvency Service,19/10/2015,Office Supplies and Services,OFFICIAL RECEIVER SERVICES                                                                          ,BANNER BUSINESS SERVICES Ltd.,BA0000290594,218.42,731860439
BIS,The Insolvency Service,19/10/2015,Office Supplies and Services,OFFICIAL RECEIVER SERVICES                                                                          ,BANNER BUSINESS SERVICES Ltd.,BA0000290594,235.48,731860439
BIS,The Insolvency Service,19/10/2015,Office Supplies and Services,OFFICIAL RECEIVER SERVICES                                                                          ,BANNER BUSINESS SERVICES Ltd.,BA0000290594,245.15,731860439
BIS,The Insolvency Service,19/10/2015,Office Supplies and Services,OFFICIAL RECEIVER SERVICES                                                                          ,BANNER BUSINESS SERVICES Ltd.,BA0000290594,249.10,731860439
BIS,The Insolvency Service,19/10/2015,Office Supplies and Services,OFFICIAL RECEIVER SERVICES                                                                          ,BANNER BUSINESS SERVICES Ltd.,BA0000290594,323.78,731860439
BIS,The Insolvency Service,19/10/2015,Office Supplies and Services,OFFICIAL RECEIVER SERVICES                                                                          ,BANNER BUSINESS SERVICES Ltd.,BA0000290594,383.20,731860439
BIS,The Insolvency Service,19/10/2015,Office Supplies and Services,OFFICIAL RECEIVER SERVICES                                                                          ,BANNER BUSINESS SERVICES Ltd.,BA0000290594,386.74,731860439
BIS,The Insolvency Service,19/10/2015,Office Supplies and Services,OFFICIAL RECEIVER SERVICES                                                                          ,BANNER BUSINESS SERVICES Ltd.,BA0000290594,425.88,731860439
BIS,The Insolvency Service,19/10/2015,Office Supplies and Services,OFFICIAL RECEIVER SERVICES                                                                          ,BANNER BUSINESS SERVICES Ltd.,BA0000290594,720.55,731860439
BIS,The Insolvency Service,19/10/2015,Office Supplies and Services,OFFICIAL RECEIVER SERVICES                                                                          ,BANNER BUSINESS SERVICES Ltd.,BA0000290550,66.18,731860439
BIS,The Insolvency Service,19/10/2015,Office Supplies and Services,OFFICIAL RECEIVER SERVICES                                                                          ,BANNER BUSINESS SERVICES Ltd.,BA0000290550,83.50,731860439
BIS,The Insolvency Service,19/10/2015,Office Supplies and Services,OFFICIAL RECEIVER SERVICES                                                                          ,BANNER BUSINESS SERVICES Ltd.,BA0000290550,85.44,731860439
BIS,The Insolvency Service,19/10/2015,Office Supplies and Services,OFFICIAL RECEIVER SERVICES                                                                          ,BANNER BUSINESS SERVICES Ltd.,BA0000290550,156.67,731860439
BIS,The Insolvency Service,19/10/2015,Office Supplies and Services,OFFICIAL RECEIVER SERVICES                                                                          ,BANNER BUSINESS SERVICES Ltd.,BA0000290550,162.29,731860439
BIS,The Insolvency Service,19/10/2015,Office Supplies and Services,OFFICIAL RECEIVER SERVICES                                                                          ,BANNER BUSINESS SERVICES Ltd.,BA0000290550,179.68,731860439
BIS,The Insolvency Service,19/10/2015,Office Supplies and Services,OFFICIAL RECEIVER SERVICES                                                                          ,BANNER BUSINESS SERVICES Ltd.,BA0000290550,187.39,731860439
BIS,The Insolvency Service,19/10/2015,Office Supplies and Services,OFFICIAL RECEIVER SERVICES                                                                          ,BANNER BUSINESS SERVICES Ltd.,BA0000290550,214.06,731860439
BIS,The Insolvency Service,19/10/2015,Office Supplies and Services,OFFICIAL RECEIVER SERVICES                                                                          ,BANNER BUSINESS SERVICES Ltd.,BA0000290550,288.79,731860439
BIS,The Insolvency Service,19/10/2015,Office Supplies and Services,OFFICIAL RECEIVER SERVICES                                                                          ,BANNER BUSINESS SERVICES Ltd.,BA0000290550,360.11,731860439
BIS,The Insolvency Service,19/10/2015,Office Supplies and Services,OFFICIAL RECEIVER SERVICES                                                                          ,BANNER BUSINESS SERVICES Ltd.,BA0000290550,370.01,731860439
BIS,The Insolvency Service,19/10/2015,Office Supplies and Services,OFFICIAL RECEIVER SERVICES                                                                          ,BANNER BUSINESS SERVICES Ltd.,BA0000290550,384.61,731860439
BIS,The Insolvency Service,19/10/2015,Office Supplies and Services,OFFICIAL RECEIVER SERVICES                                                                          ,BANNER BUSINESS SERVICES Ltd.,BA0000290550,426.72,731860439
BIS,The Insolvency Service,19/10/2015,Office Supplies and Services,OFFICIAL RECEIVER SERVICES                                                                          ,BANNER BUSINESS SERVICES Ltd.,BA0000290550,482.34,731860439
BIS,The Insolvency Service,19/10/2015,Office Supplies and Services,OFFICIAL RECEIVER SERVICES                                                                          ,BANNER BUSINESS SERVICES Ltd.,BA0000290550,496.82,731860439
BIS,The Insolvency Service,19/10/2015,Office Supplies and Services,OFFICIAL RECEIVER SERVICES                                                                          ,BANNER BUSINESS SERVICES Ltd.,BA0000290550,648.92,731860439
BIS,The Insolvency Service,20/10/2015,Accommodation,FINANCE AND COMMERCIAL                                                                              ,BANNER BUSINESS SERVICES Ltd.,BA0000290616,166.32,731860439
BIS,The Insolvency Service,20/10/2015,Accommodation,FINANCE AND COMMERCIAL                                                                              ,BANNER BUSINESS SERVICES Ltd.,BA0000290616,957.06,731860439
BIS,The Insolvency Service,20/10/2015,Accommodation,OFFICIAL RECEIVER SERVICES                                                                          ,BANNER BUSINESS SERVICES Ltd.,BA0000290616,6.30,731860439
BIS,The Insolvency Service,20/10/2015,Accommodation,OFFICIAL RECEIVER SERVICES                                                                          ,BANNER BUSINESS SERVICES Ltd.,BA0000290616,29.88,731860439
BIS,The Insolvency Service,20/10/2015,Accommodation,OFFICIAL RECEIVER SERVICES                                                                          ,BANNER BUSINESS SERVICES Ltd.,BA0000290616,30.60,731860439
BIS,The Insolvency Service,20/10/2015,Accommodation,OFFICIAL RECEIVER SERVICES                                                                          ,BANNER BUSINESS SERVICES Ltd.,BA0000290616,38.16,731860439
BIS,The Insolvency Service,20/10/2015,Accommodation,OFFICIAL RECEIVER SERVICES                                                                          ,BANNER BUSINESS SERVICES Ltd.,BA0000290616,45.51,731860439
BIS,The Insolvency Service,20/10/2015,Accommodation,OFFICIAL RECEIVER SERVICES                                                                          ,BANNER BUSINESS SERVICES Ltd.,BA0000290616,53.33,731860439
BIS,The Insolvency Service,20/10/2015,Accommodation,OFFICIAL RECEIVER SERVICES                                                                          ,BANNER BUSINESS SERVICES Ltd.,BA0000290616,64.80,731860439
BIS,The Insolvency Service,20/10/2015,Accommodation,OFFICIAL RECEIVER SERVICES                                                                          ,BANNER BUSINESS SERVICES Ltd.,BA0000290616,75.06,731860439
BIS,The Insolvency Service,20/10/2015,Accommodation,OFFICIAL RECEIVER SERVICES                                                                          ,BANNER BUSINESS SERVICES Ltd.,BA0000290616,87.50,731860439
BIS,The Insolvency Service,20/10/2015,Accommodation,OFFICIAL RECEIVER SERVICES                                                                          ,BANNER BUSINESS SERVICES Ltd.,BA0000290616,90.00,731860439
BIS,The Insolvency Service,20/10/2015,Accommodation,OFFICIAL RECEIVER SERVICES                                                                          ,BANNER BUSINESS SERVICES Ltd.,BA0000290616,100.36,731860439
BIS,The Insolvency Service,20/10/2015,Accommodation,OFFICIAL RECEIVER SERVICES                                                                          ,BANNER BUSINESS SERVICES Ltd.,BA0000290616,105.30,731860439
BIS,The Insolvency Service,20/10/2015,Accommodation,OFFICIAL RECEIVER SERVICES                                                                          ,BANNER BUSINESS SERVICES Ltd.,BA0000290616,156.00,731860439
BIS,The Insolvency Service,20/10/2015,Accommodation,OFFICIAL RECEIVER SERVICES                                                                          ,BANNER BUSINESS SERVICES Ltd.,BA0000290616,159.40,731860439
BIS,The Insolvency Service,20/10/2015,Accommodation,OFFICIAL RECEIVER SERVICES                                                                          ,BANNER BUSINESS SERVICES Ltd.,BA0000290616,172.80,731860439
BIS,The Insolvency Service,23/10/2015,Training Costs,PEOPLE & CAPABILITY                                                                                 ,BIRMINGHAM CITY UNIVERSITY,BA0000290703,"1,735.00",
BIS,The Insolvency Service,12/10/2015,Insolvency Case Related Costs,INVESTIGATIONS & ENFORCEMENT                                                                        ,BIS - DEPT. FOR BUSINESS INNOVATION & SKILLS,BA0000290441,"4,333.50",888825550
BIS,The Insolvency Service,15/10/2015,Accommodation,ESTATES,BIS - DEPT. FOR BUSINESS INNOVATION & SKILLS,BA0000290537,"8,880.13",888825550
BIS,The Insolvency Service,22/10/2015,Accommodation,ESTATES,BIS - DEPT. FOR BUSINESS INNOVATION & SKILLS,BA0000290677,"290,943.00",888825550
BIS,The Insolvency Service,22/10/2015,Accommodation,ESTATES,BIS - DEPT. FOR BUSINESS INNOVATION & SKILLS,BA0000290677,"124,344.00",888825550
BIS,The Insolvency Service,22/10/2015,Accommodation,ESTATES,BIS - DEPT. FOR BUSINESS INNOVATION & SKILLS,BA0000290677,"123,284.00",888825550
BIS,The Insolvency Service,23/10/2015,Accommodation,ESTATES                                                                                             ,BIS - DEPT. FOR BUSINESS INNOVATION & SKILLS,BA0000290717,"22,642.00",888825550
BIS,The Insolvency Service,23/10/2015,Accommodation,ESTATES                                                                                             ,BIS - DEPT. FOR BUSINESS INNOVATION & SKILLS,BA0000290717,"8,396.00",888825550
BIS,The Insolvency Service,23/10/2015,Accommodation,ESTATES                                                                                             ,BIS - DEPT. FOR BUSINESS INNOVATION & SKILLS,BA0000290717,"5,183.00",888825550
BIS,The Insolvency Service,08/10/2015,Investigation and Enforcement Costs,INVESTIGATIONS & ENFORCEMENT                                                                        ,BOND DICKINSON                                              ,BA0000290348,"49,184.82",123392627
BIS,The Insolvency Service,08/10/2015,Investigation and Enforcement Costs,INVESTIGATIONS & ENFORCEMENT                                                                        ,BOND DICKINSON                                              ,BA0000290348,"59,320.04",123392627
BIS,The Insolvency Service,08/10/2015,Investigation and Enforcement Costs,INVESTIGATIONS & ENFORCEMENT                                                                        ,BOND DICKINSON                                              ,BA0000290348,246.00,123392627
BIS,The Insolvency Service,08/10/2015,Investigation and Enforcement Costs,INVESTIGATIONS & ENFORCEMENT                                                                        ,BOND DICKINSON                                              ,BA0000290348,"9,796.00",123392627
BIS,The Insolvency Service,08/10/2015,Investigation and Enforcement Costs,INVESTIGATIONS & ENFORCEMENT                                                                        ,BOND DICKINSON                                              ,BA0000290348,"27,534.05",123392627
BIS,The Insolvency Service,08/10/2015,Investigation and Enforcement Costs,INVESTIGATIONS & ENFORCEMENT                                                                        ,BOND DICKINSON                                              ,BA0000290348,"44,435.88",123392627
BIS,The Insolvency Service,28/10/2015,Investigation and Enforcement Costs,INVESTIGATIONS & ENFORCEMENT                                                                        ,BOND DICKINSON                                              ,BA0000290809,"54,048.27",123392627
BIS,The Insolvency Service,28/10/2015,Investigation and Enforcement Costs,INVESTIGATIONS & ENFORCEMENT                                                                        ,BOND DICKINSON                                              ,BA0000290809,"54,514.30",123392627
BIS,The Insolvency Service,28/10/2015,Investigation and Enforcement Costs,INVESTIGATIONS & ENFORCEMENT                                                                        ,BOND DICKINSON                                              ,BA0000290820,116.00,123392627
BIS,The Insolvency Service,28/10/2015,Investigation and Enforcement Costs,INVESTIGATIONS & ENFORCEMENT                                                                        ,BOND DICKINSON                                              ,BA0000290809,114.00,123392627
BIS,The Insolvency Service,28/10/2015,Investigation and Enforcement Costs,INVESTIGATIONS & ENFORCEMENT                                                                        ,BOND DICKINSON                                              ,BA0000290809,"4,621.40",123392627
BIS,The Insolvency Service,28/10/2015,Investigation and Enforcement Costs,INVESTIGATIONS & ENFORCEMENT                                                                        ,BOND DICKINSON                                              ,BA0000290809,"7,236.54",123392627
BIS,The Insolvency Service,28/10/2015,Investigation and Enforcement Costs,INVESTIGATIONS & ENFORCEMENT                                                                        ,BOND DICKINSON                                              ,BA0000290809,"37,450.82",123392627
BIS,The Insolvency Service,19/10/2015,Accommodation,FINANCE AND COMMERCIAL                                                                              ,BRADLEY HALL                                                ,BA0000290547,252.00,
BIS,The Insolvency Service,01/10/2015,Insolvency Case Related Costs,BUSINESS SERVICES DIRECTORATE                                                                       ,BRIGHTON COUNTY COURT,BA0000290523,100.00,
BIS,The Insolvency Service,01/10/2015,Insolvency Case Related Costs,BUSINESS SERVICES DIRECTORATE                                                                       ,BRIGHTON COUNTY COURT,BA0000290523,100.00,
BIS,The Insolvency Service,01/10/2015,Insolvency Case Related Costs,OFFICIAL RECEIVER SERVICES                                                                          ,BRIGHTON COUNTY COURT,BA0000290523,480.00,
BIS,The Insolvency Service,05/10/2015,Agency Workers,FINANCE AND COMMERCIAL,BROOK STREET (UK) LTD,BA0000290203,"47,530.69",
BIS,The Insolvency Service,12/10/2015,Agency Workers,FINANCE AND COMMERCIAL,BROOK STREET (UK) LTD,BA0000290431,"48,702.59",
BIS,The Insolvency Service,19/10/2015,Agency Workers,FINANCE AND COMMERCIAL,BROOK STREET (UK) LTD,BA0000290593,"50,281.50",
BIS,The Insolvency Service,28/10/2015,Agency Workers,FINANCE AND COMMERCIAL,BROOK STREET (UK) LTD,BA0000290746,"49,309.86",
BIS,The Insolvency Service,30/10/2015,Agency Workers,FINANCE AND COMMERCIAL,BROOK STREET (UK) LTD,BA0000290848,"52,953.29",
BIS,The Insolvency Service,28/10/2015,Telecoms,FINANCE AND COMMERCIAL,BT CONFERENCING SERVICES,BA0000290749,"1,302.06",245719348
BIS,The Insolvency Service,22/10/2015,Telecoms,ESTATES,BT TELEPHONE PAYMENT CENTRE,BA0000290679,99.89,245719348
BIS,The Insolvency Service,29/10/2015,Telecoms,INFORMATION TECHNOLOGY                                                                              ,BT TELEPHONE PAYMENT CENTRE,BA0000290834,199.10,245719348
BIS,The Insolvency Service,06/10/2015,Investigation and Enforcement Costs,INVESTIGATIONS & ENFORCEMENT                                                                        ,BURNESS PAULL & WILLIAMSONS SOLICITORS,BA0000290268,"21,449.98",268398111
BIS,The Insolvency Service,06/10/2015,Investigation and Enforcement Costs,INVESTIGATIONS & ENFORCEMENT                                                                        ,BURNESS PAULL & WILLIAMSONS SOLICITORS,BA0000290268,"7,876.08",268398111
BIS,The Insolvency Service,06/10/2015,Investigation and Enforcement Costs,INVESTIGATIONS & ENFORCEMENT                                                                        ,BURNESS PAULL & WILLIAMSONS SOLICITORS,BA0000290268,446.68,268398111
BIS,The Insolvency Service,20/10/2015,Investigation and Enforcement Costs,INVESTIGATIONS & ENFORCEMENT                                                                        ,BURNESS PAULL & WILLIAMSONS SOLICITORS,BA0000290626,22.00,268398111
BIS,The Insolvency Service,20/10/2015,Investigation and Enforcement Costs,INVESTIGATIONS & ENFORCEMENT                                                                        ,BURNESS PAULL & WILLIAMSONS SOLICITORS,BA0000290626,"43,662.08",268398111
BIS,The Insolvency Service,20/10/2015,Investigation and Enforcement Costs,INVESTIGATIONS & ENFORCEMENT                                                                        ,BURNESS PAULL & WILLIAMSONS SOLICITORS,BA0000290626,"13,949.55",268398111
BIS,The Insolvency Service,20/10/2015,Investigation and Enforcement Costs,INVESTIGATIONS & ENFORCEMENT                                                                        ,BURNESS PAULL & WILLIAMSONS SOLICITORS,BA0000290626,"2,230.35",268398111
BIS,The Insolvency Service,05/10/2015,Agency Workers,FINANCE AND COMMERCIAL                                                                              ,CAPITA BUSINESS SERVICES LTD,BA0000290262,"2,834.34",618184140
BIS,The Insolvency Service,05/10/2015,Computer and IT Systems,INFORMATION TECHNOLOGY                                                                              ,CAPITA BUSINESS SERVICES LTD,BA0000290261,"2,350.74",618184140
BIS,The Insolvency Service,12/10/2015,Agency Workers,FINANCE AND COMMERCIAL                                                                              ,CAPITA BUSINESS SERVICES LTD,BA0000290428,"2,834.34",618184140
BIS,The Insolvency Service,12/10/2015,Computer and IT Systems,INFORMATION TECHNOLOGY                                                                              ,CAPITA BUSINESS SERVICES LTD,BA0000290429,"2,350.74",618184140
BIS,The Insolvency Service,12/10/2015,Training Costs,FINANCE AND COMMERCIAL                                                                              ,CAPITA BUSINESS SERVICES LTD,BA0000290422,"4,051.00",618184140
BIS,The Insolvency Service,12/10/2015,Training Costs,PEOPLE & CAPABILITY                                                                                 ,CAPITA BUSINESS SERVICES LTD,BA0000290414,692.00,618184140
BIS,The Insolvency Service,14/10/2015,Training Costs,PEOPLE & CAPABILITY                                                                                 ,CAPITA BUSINESS SERVICES LTD,BA0000290517,119.99,618184140
BIS,The Insolvency Service,19/10/2015,Computer and IT Systems,INFORMATION TECHNOLOGY                                                                              ,CAPITA BUSINESS SERVICES LTD,BA0000290592,"2,350.74",618184140
BIS,The Insolvency Service,23/10/2015,Training Costs,FINANCE AND COMMERCIAL                                                                              ,CAPITA BUSINESS SERVICES LTD,BA0000290702,"3,673.00",618184140
BIS,The Insolvency Service,23/10/2015,Training Costs,PEOPLE & CAPABILITY                                                                                 ,CAPITA BUSINESS SERVICES LTD,BA0000290706,522.73,618184140
BIS,The Insolvency Service,23/10/2015,Training Costs,PEOPLE & CAPABILITY                                                                                 ,CAPITA BUSINESS SERVICES LTD,BA0000290707,136.70,618184140
BIS,The Insolvency Service,23/10/2015,Training Costs,PEOPLE & CAPABILITY                                                                                 ,CAPITA BUSINESS SERVICES LTD,BA0000290708,522.73,618184140
BIS,The Insolvency Service,23/10/2015,Training Costs,PEOPLE & CAPABILITY                                                                                 ,CAPITA BUSINESS SERVICES LTD,BA0000290709,700.00,618184140
BIS,The Insolvency Service,23/10/2015,Training Costs,PEOPLE & CAPABILITY                                                                                 ,CAPITA BUSINESS SERVICES LTD,BA0000290710,700.00,618184140
BIS,The Insolvency Service,23/10/2015,Training Costs,PEOPLE & CAPABILITY                                                                                 ,CAPITA BUSINESS SERVICES LTD,BA0000290711,136.70,618184140
BIS,The Insolvency Service,23/10/2015,Training Costs,PEOPLE & CAPABILITY                                                                                 ,CAPITA BUSINESS SERVICES LTD,BA0000290712,137.00,618184140
BIS,The Insolvency Service,28/10/2015,Computer and IT Systems,INFORMATION TECHNOLOGY                                                                              ,CAPITA BUSINESS SERVICES LTD,BA0000290750,"2,115.67",618184140
BIS,The Insolvency Service,28/10/2015,Training Costs,FINANCE AND COMMERCIAL                                                                              ,CAPITA BUSINESS SERVICES LTD,BA0000290736,"4,153.00",618184140
BIS,The Insolvency Service,28/10/2015,Training Costs,FINANCE AND COMMERCIAL                                                                              ,CAPITA BUSINESS SERVICES LTD,BA0000290811,"4,051.00",618184140
BIS,The Insolvency Service,28/10/2015,Training Costs,FINANCE AND COMMERCIAL                                                                              ,CAPITA BUSINESS SERVICES LTD,BA0000290821,"8,102.00",618184140
BIS,The Insolvency Service,28/10/2015,Training Costs,PEOPLE & CAPABILITY                                                                                 ,CAPITA BUSINESS SERVICES LTD,BA0000290772,209.00,618184140
BIS,The Insolvency Service,28/10/2015,Training Costs,PEOPLE & CAPABILITY                                                                                 ,CAPITA BUSINESS SERVICES LTD,BA0000290773,162.00,618184140
BIS,The Insolvency Service,28/10/2015,Training Costs,PEOPLE & CAPABILITY                                                                                 ,CAPITA BUSINESS SERVICES LTD,BA0000290736,"3,673.00",618184140
BIS,The Insolvency Service,28/10/2015,Training Costs,PEOPLE & CAPABILITY                                                                                 ,CAPITA BUSINESS SERVICES LTD,BA0000290732,119.99,618184140
BIS,The Insolvency Service,28/10/2015,Training Costs,PEOPLE & CAPABILITY                                                                                 ,CAPITA BUSINESS SERVICES LTD,BA0000290733,126.00,618184140
BIS,The Insolvency Service,28/10/2015,Training Costs,PEOPLE & CAPABILITY                                                                                 ,CAPITA BUSINESS SERVICES LTD,BA0000290804,203.23,618184140
BIS,The Insolvency Service,28/10/2015,Training Costs,PEOPLE & CAPABILITY                                                                                 ,CAPITA BUSINESS SERVICES LTD,BA0000290810,137.00,618184140
BIS,The Insolvency Service,28/10/2015,Training Costs,PEOPLE & CAPABILITY                                                                                 ,CAPITA BUSINESS SERVICES LTD,BA0000290802,133.00,618184140
BIS,The Insolvency Service,28/10/2015,Training Costs,PEOPLE & CAPABILITY                                                                                 ,CAPITA BUSINESS SERVICES LTD,BA0000290812,"-4,346.34",618184140
BIS,The Insolvency Service,28/10/2015,Training Costs,PEOPLE & CAPABILITY                                                                                 ,CAPITA BUSINESS SERVICES LTD,BA0000290813,"4,021.95",618184140
BIS,The Insolvency Service,22/10/2015,Accommodation,ESTATES,CBRE CB RICHARD ELLIS LTD,BA0000290695,"3,366.51",
BIS,The Insolvency Service,14/10/2015,Accommodation,ESTATES,CBRE LIMITED,BA0000290487,"3,253.74",
BIS,The Insolvency Service,01/10/2015,Travel and Subsistence,OFFICIAL RECEIVER SERVICES                                                                          ,CITIPARK - WHITEHALL RD LEEDS                               ,BA0000290523,8.00,
BIS,The Insolvency Service,05/10/2015,Travel and Subsistence,BUSINESS SERVICES DIRECTORATE                                                                       ,CITY CABS (EDINBURGH) LTD,BA0000290247,61.15,270679436
BIS,The Insolvency Service,06/10/2015,Postage,INFORMATION TECHNOLOGY                                                                              ,CITY SPRINT UK LTD,BA0000290287,171.76,
BIS,The Insolvency Service,12/10/2015,Postage,OFFICIAL RECEIVER SERVICES                                                                          ,CITY SPRINT UK LTD,BA0000290416,86.98,
BIS,The Insolvency Service,12/10/2015,Postage,OFFICIAL RECEIVER SERVICES                                                                          ,CITY SPRINT UK LTD,BA0000290437,40.76,
BIS,The Insolvency Service,14/10/2015,Postage,INFORMATION TECHNOLOGY                                                                              ,CITY SPRINT UK LTD,BA0000290490,118.46,
BIS,The Insolvency Service,14/10/2015,Postage,OFFICIAL RECEIVER SERVICES                                                                          ,CITY SPRINT UK LTD,BA0000290497,64.93,
BIS,The Insolvency Service,19/10/2015,Investigation and Enforcement Costs,INVESTIGATIONS & ENFORCEMENT                                                                        ,CLARKE WILLMOTT SOLICITORS,BA0000290577,280.68,129913060
BIS,The Insolvency Service,19/10/2015,Investigation and Enforcement Costs,INVESTIGATIONS & ENFORCEMENT                                                                        ,CLARKE WILLMOTT SOLICITORS,BA0000290579,319.13,129913060
BIS,The Insolvency Service,01/10/2015,Travel and Subsistence,PEOPLE & CAPABILITY                                                                                 ,CLAYTON HOTEL LEEDS                                         ,BA0000290523,9.00,
BIS,The Insolvency Service,01/10/2015,Accommodation,BUSINESS SERVICES DIRECTORATE                                                                       ,CLOUDFARE                                                   ,BA0000290523,144.76,
BIS,The Insolvency Service,05/10/2015,Insolvency Case Related Costs,OFFICIAL RECEIVER SERVICES                                                                          ,COMPANIES HOUSE,BA0000290245,32.00,GD255
BIS,The Insolvency Service,06/10/2015,Insolvency Case Related Costs,OFFICIAL RECEIVER SERVICES                                                                          ,COMPANIES HOUSE,BA0000290274,20.00,GD255
BIS,The Insolvency Service,07/10/2015,Insolvency Case Related Costs,OFFICIAL RECEIVER SERVICES                                                                          ,COMPANIES HOUSE,BA0000290319,6.00,GD255
BIS,The Insolvency Service,07/10/2015,Insolvency Case Related Costs,OFFICIAL RECEIVER SERVICES                                                                          ,COMPANIES HOUSE,BA0000290323,7.00,GD255
BIS,The Insolvency Service,07/10/2015,Insolvency Case Related Costs,OFFICIAL RECEIVER SERVICES                                                                          ,COMPANIES HOUSE,BA0000290324,13.00,GD255
BIS,The Insolvency Service,07/10/2015,Insolvency Case Related Costs,OFFICIAL RECEIVER SERVICES                                                                          ,COMPANIES HOUSE,BA0000290325,4.00,GD255
BIS,The Insolvency Service,08/10/2015,Insolvency Case Related Costs,OFFICIAL RECEIVER SERVICES                                                                          ,COMPANIES HOUSE,BA0000290364,12.00,GD255
BIS,The Insolvency Service,08/10/2015,Insolvency Case Related Costs,OFFICIAL RECEIVER SERVICES                                                                          ,COMPANIES HOUSE,BA0000290371,15.00,GD255
BIS,The Insolvency Service,08/10/2015,Insolvency Case Related Costs,OFFICIAL RECEIVER SERVICES                                                                          ,COMPANIES HOUSE,BA0000290367,4.00,GD255
BIS,The Insolvency Service,12/10/2015,Insolvency Case Related Costs,BUSINESS SERVICES DIRECTORATE                                                                       ,COMPANIES HOUSE,BA0000290411,27.00,GD255
BIS,The Insolvency Service,12/10/2015,Insolvency Case Related Costs,OFFICIAL RECEIVER SERVICES                                                                          ,COMPANIES HOUSE,BA0000290413,4.00,GD255
BIS,The Insolvency Service,12/10/2015,Insolvency Case Related Costs,OFFICIAL RECEIVER SERVICES                                                                          ,COMPANIES HOUSE,BA0000290420,4.00,GD255
BIS,The Insolvency Service,12/10/2015,Insolvency Case Related Costs,OFFICIAL RECEIVER SERVICES                                                                          ,COMPANIES HOUSE,BA0000290415,13.00,GD255
BIS,The Insolvency Service,12/10/2015,Insolvency Case Related Costs,OFFICIAL RECEIVER SERVICES                                                                          ,COMPANIES HOUSE,BA0000290442,6.00,GD255
BIS,The Insolvency Service,14/10/2015,Telecoms,OFFICIAL RECEIVER SERVICES                                                                          ,COMPANIES HOUSE,BA0000290526,456.98,GD255
BIS,The Insolvency Service,14/10/2015,Insolvency Case Related Costs,OFFICIAL RECEIVER SERVICES                                                                          ,COMPANIES HOUSE,BA0000290486,6.00,GD255
BIS,The Insolvency Service,14/10/2015,Insolvency Case Related Costs,OFFICIAL RECEIVER SERVICES                                                                          ,COMPANIES HOUSE,BA0000290522,5.00,GD255
BIS,The Insolvency Service,19/10/2015,Insolvency Case Related Costs,OFFICIAL RECEIVER SERVICES                                                                          ,COMPANIES HOUSE,BA0000290580,20.00,GD255
BIS,The Insolvency Service,19/10/2015,Insolvency Case Related Costs,OFFICIAL RECEIVER SERVICES                                                                          ,COMPANIES HOUSE,BA0000290569,34.00,GD255
BIS,The Insolvency Service,19/10/2015,Insolvency Case Related Costs,OFFICIAL RECEIVER SERVICES                                                                          ,COMPANIES HOUSE,BA0000290570,4.00,GD255
BIS,The Insolvency Service,19/10/2015,Insolvency Case Related Costs,OFFICIAL RECEIVER SERVICES                                                                          ,COMPANIES HOUSE,BA0000290581,5.00,GD255
BIS,The Insolvency Service,20/10/2015,Insolvency Case Related Costs,OFFICIAL RECEIVER SERVICES                                                                          ,COMPANIES HOUSE,BA0000290644,5.00,GD255
BIS,The Insolvency Service,23/10/2015,Insolvency Case Related Costs,OFFICIAL RECEIVER SERVICES                                                                          ,COMPANIES HOUSE,BA0000290715,4.00,GD255
BIS,The Insolvency Service,28/10/2015,Insolvency Case Related Costs,INVESTIGATIONS & ENFORCEMENT                                                                        ,COMPANIES HOUSE,BA0000290727,"1,059.00",GD255
BIS,The Insolvency Service,28/10/2015,Insolvency Case Related Costs,OFFICIAL RECEIVER SERVICES                                                                          ,COMPANIES HOUSE,BA0000290734,7.00,GD255
BIS,The Insolvency Service,19/10/2015,Telecoms,BUSINESS SERVICES DIRECTORATE                                                                       ,COMS.COM LTD                                                ,BA0000290544,420.00,847139114
BIS,The Insolvency Service,19/10/2015,Telecoms,BUSINESS SERVICES DIRECTORATE                                                                       ,COMS.COM LTD                                                ,BA0000290587,"1,353.83",847139114
BIS,The Insolvency Service,19/10/2015,Telecoms,BUSINESS SERVICES DIRECTORATE                                                                       ,COMS.COM LTD                                                ,BA0000290588,"1,727.53",847139114
BIS,The Insolvency Service,06/10/2015,Agency Workers,FINANCE AND COMMERCIAL                                                                              ,CONSORTIA PERSONNEL LIMITED                                 ,BA0000290290,"3,900.00",977841055
BIS,The Insolvency Service,12/10/2015,Agency Workers,FINANCE AND COMMERCIAL                                                                              ,CONSORTIA PERSONNEL LIMITED                                 ,BA0000290430,"3,900.00",977841055
BIS,The Insolvency Service,20/10/2015,Agency Workers,FINANCE AND COMMERCIAL                                                                              ,CONSORTIA PERSONNEL LIMITED                                 ,BA0000290632,"3,900.00",977841055
BIS,The Insolvency Service,28/10/2015,Agency Workers,FINANCE AND COMMERCIAL                                                                              ,CONSORTIA PERSONNEL LIMITED                                 ,BA0000290807,"3,900.00",977841055
BIS,The Insolvency Service,28/10/2015,Agency Workers,FINANCE AND COMMERCIAL                                                                              ,CONSORTIA PERSONNEL LIMITED                                 ,BA0000290814,"3,120.00",977841055
BIS,The Insolvency Service,28/10/2015,Agency Workers,INFORMATION TECHNOLOGY                                                                              ,CONSORTIA PERSONNEL LIMITED                                 ,BA0000290799,"3,825.00",977841055
BIS,The Insolvency Service,28/10/2015,Agency Workers,INFORMATION TECHNOLOGY                                                                              ,CONSORTIA PERSONNEL LIMITED                                 ,BA0000290800,"3,825.00",977841055
BIS,The Insolvency Service,28/10/2015,Agency Workers,INFORMATION TECHNOLOGY                                                                              ,CONSORTIA PERSONNEL LIMITED                                 ,BA0000290803,"3,825.00",977841055
BIS,The Insolvency Service,28/10/2015,Agency Workers,INFORMATION TECHNOLOGY                                                                              ,CONSORTIA PERSONNEL LIMITED                                 ,BA0000290808,"3,825.00",977841055
BIS,The Insolvency Service,20/10/2015,Accommodation,ESTATES,CORONA ENERGY RETAIL 4 LIMITED,BA0000290488,50.96,714232961
BIS,The Insolvency Service,06/10/2015,Secretariat Costs,CUSTOMER AND COMMUNICATIONS                                                                         ,CRD RESEARCH                                                ,BA0000290282,571.00,289382407
BIS,The Insolvency Service,05/10/2015,Computer and IT Systems,INFORMATION TECHNOLOGY                                                                              ,DAISY DATA CENTRE SOLUTIONS LIMITED,BA0000290252,"28,427.28",156929175
BIS,The Insolvency Service,12/10/2015,Accommodation,ESTATES,DEPARTMENT FOR WORK & PENSIONS,BA0000290445,21.34,888815554
BIS,The Insolvency Service,15/10/2015,Accommodation,ESTATES,DEPARTMENT FOR WORK & PENSIONS,BA0000290542,"6,304.79",888815554
BIS,The Insolvency Service,15/10/2015,Accommodation,ESTATES,DEPARTMENT FOR WORK & PENSIONS,BA0000290542,"2,429.50",888815554
BIS,The Insolvency Service,22/10/2015,Accommodation,ESTATES,DEPARTMENT FOR WORK & PENSIONS,BA0000290549,274.77,888815554
BIS,The Insolvency Service,22/10/2015,Accommodation,ESTATES,DEPARTMENT FOR WORK & PENSIONS,BA0000290548,39.81,888815554
BIS,The Insolvency Service,12/10/2015,Accommodation,ESTATES,DERING PROPERTIES LTD (RENT),BA0000290443,"1,087.04",
BIS,The Insolvency Service,14/10/2015,Employee Related Costs,PEOPLE & CAPABILITY                                                                                 ,DISCLOSURE SCOTLAND,BA0000290505,675.00,
BIS,The Insolvency Service,01/10/2015,Computer and IT Systems,BUSINESS SERVICES DIRECTORATE                                                                       ,DOLLAR PHOTO CLUB                                           ,BA0000290523,1.80,
BIS,The Insolvency Service,01/10/2015,Travel and Subsistence,EXTERNAL AFFAIRS                                                                                    ,DOLLAR PHOTO CLUB                                           ,BA0000290523,13.70,
BIS,The Insolvency Service,01/10/2015,Accommodation,BUSINESS SERVICES DIRECTORATE                                                                       ,DOLLAR PHOTO CLUB                                           ,BA0000290523,3.98,
BIS,The Insolvency Service,07/10/2015,Investigation and Enforcement Costs,INVESTIGATIONS & ENFORCEMENT                                                                        ,DWF                                                         ,BA0000290335,"11,507.92",
BIS,The Insolvency Service,07/10/2015,Investigation and Enforcement Costs,INVESTIGATIONS & ENFORCEMENT                                                                        ,DWF                                                         ,BA0000290346,"13,074.47",
BIS,The Insolvency Service,14/10/2015,Investigation and Enforcement Costs,INVESTIGATIONS & ENFORCEMENT                                                                        ,DWF                                                         ,BA0000290492,140.00,
BIS,The Insolvency Service,14/10/2015,Investigation and Enforcement Costs,INVESTIGATIONS & ENFORCEMENT                                                                        ,DWF                                                         ,BA0000290502,"10,885.50",
BIS,The Insolvency Service,14/10/2015,Investigation and Enforcement Costs,INVESTIGATIONS & ENFORCEMENT                                                                        ,DWF                                                         ,BA0000290491,13.30,
BIS,The Insolvency Service,14/10/2015,Investigation and Enforcement Costs,INVESTIGATIONS & ENFORCEMENT                                                                        ,DWF                                                         ,BA0000290501,"1,591.50",
BIS,The Insolvency Service,14/10/2015,Investigation and Enforcement Costs,INVESTIGATIONS & ENFORCEMENT                                                                        ,DWF                                                         ,BA0000290493,"4,507.00",
BIS,The Insolvency Service,14/10/2015,Investigation and Enforcement Costs,INVESTIGATIONS & ENFORCEMENT                                                                        ,DWF                                                         ,BA0000290494,763.50,
BIS,The Insolvency Service,14/10/2015,Investigation and Enforcement Costs,INVESTIGATIONS & ENFORCEMENT                                                                        ,DWF                                                         ,BA0000290499,"5,074.00",
BIS,The Insolvency Service,14/10/2015,Investigation and Enforcement Costs,INVESTIGATIONS & ENFORCEMENT                                                                        ,DWF                                                         ,BA0000290500,"7,698.00",
BIS,The Insolvency Service,20/10/2015,Investigation and Enforcement Costs,INVESTIGATIONS & ENFORCEMENT                                                                        ,DWF                                                         ,BA0000290631,"7,395.90",
BIS,The Insolvency Service,20/10/2015,Investigation and Enforcement Costs,INVESTIGATIONS & ENFORCEMENT                                                                        ,DWF                                                         ,BA0000290630,"1,358.00",
BIS,The Insolvency Service,20/10/2015,Investigation and Enforcement Costs,INVESTIGATIONS & ENFORCEMENT                                                                        ,DWF                                                         ,BA0000290637,352.00,
BIS,The Insolvency Service,12/10/2015,Investigation and Enforcement Costs,INVESTIGATIONS & ENFORCEMENT                                                                        ,DWF SOLICITORS,BA0000290423,"61,625.00",
BIS,The Insolvency Service,05/10/2015,Postage,INFORMATION TECHNOLOGY                                                                              ,DX NETWORK SERVICES LTD,BA0000290205,166.61,849741385
BIS,The Insolvency Service,05/10/2015,Postage,INFORMATION TECHNOLOGY                                                                              ,DX NETWORK SERVICES LTD,BA0000290205,309.70,849741385
BIS,The Insolvency Service,05/10/2015,Postage,OFFICIAL RECEIVER SERVICES                                                                          ,DX NETWORK SERVICES LTD,BA0000290205,30.95,849741385
BIS,The Insolvency Service,05/10/2015,Postage,OFFICIAL RECEIVER SERVICES                                                                          ,DX NETWORK SERVICES LTD,BA0000290205,147.80,849741385
BIS,The Insolvency Service,05/10/2015,Postage,OFFICIAL RECEIVER SERVICES                                                                          ,DX NETWORK SERVICES LTD,BA0000290205,168.66,849741385
BIS,The Insolvency Service,05/10/2015,Postage,OFFICIAL RECEIVER SERVICES                                                                          ,DX NETWORK SERVICES LTD,BA0000290205,204.64,849741385
BIS,The Insolvency Service,05/10/2015,Postage,OFFICIAL RECEIVER SERVICES                                                                          ,DX NETWORK SERVICES LTD,BA0000290205,218.00,849741385
BIS,The Insolvency Service,05/10/2015,Postage,OFFICIAL RECEIVER SERVICES                                                                          ,DX NETWORK SERVICES LTD,BA0000290205,223.98,849741385
BIS,The Insolvency Service,05/10/2015,Postage,OFFICIAL RECEIVER SERVICES                                                                          ,DX NETWORK SERVICES LTD,BA0000290205,302.65,849741385
BIS,The Insolvency Service,05/10/2015,Postage,OFFICIAL RECEIVER SERVICES                                                                          ,DX NETWORK SERVICES LTD,BA0000290205,307.76,849741385
BIS,The Insolvency Service,05/10/2015,Postage,OFFICIAL RECEIVER SERVICES                                                                          ,DX NETWORK SERVICES LTD,BA0000290205,320.82,849741385
BIS,The Insolvency Service,05/10/2015,Postage,OFFICIAL RECEIVER SERVICES                                                                          ,DX NETWORK SERVICES LTD,BA0000290205,322.95,849741385
BIS,The Insolvency Service,05/10/2015,Postage,OFFICIAL RECEIVER SERVICES                                                                          ,DX NETWORK SERVICES LTD,BA0000290205,348.56,849741385
BIS,The Insolvency Service,05/10/2015,Postage,OFFICIAL RECEIVER SERVICES                                                                          ,DX NETWORK SERVICES LTD,BA0000290205,392.33,849741385
BIS,The Insolvency Service,05/10/2015,Postage,OFFICIAL RECEIVER SERVICES                                                                          ,DX NETWORK SERVICES LTD,BA0000290205,416.37,849741385
BIS,The Insolvency Service,05/10/2015,Postage,OFFICIAL RECEIVER SERVICES                                                                          ,DX NETWORK SERVICES LTD,BA0000290205,552.00,849741385
BIS,The Insolvency Service,05/10/2015,Postage,OFFICIAL RECEIVER SERVICES                                                                          ,DX NETWORK SERVICES LTD,BA0000290205,608.81,849741385
BIS,The Insolvency Service,05/10/2015,Postage,OFFICIAL RECEIVER SERVICES                                                                          ,DX NETWORK SERVICES LTD,BA0000290205,811.55,849741385
BIS,The Insolvency Service,05/10/2015,Postage,OFFICIAL RECEIVER SERVICES                                                                          ,DX NETWORK SERVICES LTD,BA0000290205,"1,792.64",849741385
BIS,The Insolvency Service,12/10/2015,Postage,OFFICIAL RECEIVER SERVICES                                                                          ,DX NETWORK SERVICES LTD,BA0000290421,187.50,849741385
BIS,The Insolvency Service,12/10/2015,Postage,OFFICIAL RECEIVER SERVICES                                                                          ,DX NETWORK SERVICES LTD,BA0000290421,444.00,849741385
BIS,The Insolvency Service,19/10/2015,Postage,INFORMATION TECHNOLOGY                                                                              ,DX NETWORK SERVICES LTD,BA0000290572,750.00,849741385
BIS,The Insolvency Service,19/10/2015,Postage,OFFICIAL RECEIVER SERVICES                                                                          ,DX NETWORK SERVICES LTD,BA0000290576,121.83,849741385
BIS,The Insolvency Service,28/10/2015,Postage,OFFICIAL RECEIVER SERVICES                                                                          ,DX NETWORK SERVICES LTD,BA0000290771,50.00,849741385
BIS,The Insolvency Service,01/10/2015,Travel and Subsistence,OFFICIAL RECEIVER SERVICES                                                                          ,EAST MIDLANDS TRAINS,BA0000290523,88.60,
BIS,The Insolvency Service,01/10/2015,Travel and Subsistence,OFFICIAL RECEIVER SERVICES                                                                          ,EAST MIDLANDS TRAINS,BA0000290523,85.50,
BIS,The Insolvency Service,01/10/2015,Accommodation,PEOPLE & CAPABILITY                                                                                 ,EB DATA VISUALISATION                                       ,BA0000290523,299.00,
BIS,The Insolvency Service,19/10/2015,Office Supplies and Services,BUSINESS SERVICES DIRECTORATE                                                                       ,EC GROUP,BA0000290574,590.96,235525471
BIS,The Insolvency Service,20/10/2015,Office Supplies and Services,BUSINESS SERVICES DIRECTORATE                                                                       ,EC GROUP,BA0000290640,345.17,235525471
BIS,The Insolvency Service,28/10/2015,Accommodation,OFFICIAL RECEIVER SERVICES                                                                          ,EC GROUP,BA0000290791,440.11,235525471
BIS,The Insolvency Service,01/10/2015,Travel and Subsistence,OFFICIAL RECEIVER SERVICES                                                                          ,ECML NEWCASTLE PARKING,BA0000290523,15.00,
BIS,The Insolvency Service,01/10/2015,Travel and Subsistence,OFFICIAL RECEIVER SERVICES                                                                          ,ECML NEWCASTLE PARKING,BA0000290523,30.00,
BIS,The Insolvency Service,01/10/2015,Travel and Subsistence,OFFICIAL RECEIVER SERVICES                                                                          ,ECML NEWCASTLE PARKING,BA0000290523,15.00,
BIS,The Insolvency Service,08/10/2015,Telecoms,INFORMATION TECHNOLOGY                                                                              ,EE LTD (AIR TIME)                                           ,BA0000290369,"6,890.44",771592016
BIS,The Insolvency Service,28/10/2015,Training Costs,PEOPLE & CAPABILITY                                                                                 ,EEF LTD                                                     ,BA0000290735,"1,136.00",941811727
BIS,The Insolvency Service,01/10/2015,Travel and Subsistence,OFFICIAL RECEIVER SERVICES                                                                          ,ENTERPRISE RENT-A-CAR UK LTD,BA0000290523,110.73,641634450
BIS,The Insolvency Service,01/10/2015,Office Supplies and Services,INVESTIGATIONS & ENFORCEMENT                                                                        ,ESSO GLOUCESTERSHIRE GATE                                   ,BA0000290523,25.55,
BIS,The Insolvency Service,29/10/2015,Accommodation,ESTATES,EXETER CITY COUNCIL,BA0000290793,"3,552.00",
BIS,The Insolvency Service,29/10/2015,Accommodation,ESTATES,EXETER CITY COUNCIL,BA0000290794,"64,583.00",
BIS,The Insolvency Service,01/10/2015,Travel and Subsistence,INVESTIGATIONS & ENFORCEMENT                                                                        ,EXTERT                                                      ,BA0000290523,5.50,
BIS,The Insolvency Service,01/10/2015,Travel and Subsistence,INVESTIGATIONS & ENFORCEMENT                                                                        ,EXTERT                                                      ,BA0000290523,11.00,
BIS,The Insolvency Service,01/10/2015,Travel and Subsistence,INVESTIGATIONS & ENFORCEMENT                                                                        ,EXTERT                                                      ,BA0000290523,5.50,
BIS,The Insolvency Service,22/10/2015,Accommodation,ESTATES,F&C REIT ASSET MANAGEMENT PLC,BA0000290694,54.10,209938729
BIS,The Insolvency Service,01/10/2015,Travel and Subsistence,EXTERNAL AFFAIRS                                                                                    ,FAIRMONT HAMILTON LODGING                                   ,BA0000290523,498.22,
BIS,The Insolvency Service,01/10/2015,Telecoms,BUSINESS SERVICES DIRECTORATE                                                                       ,FASTHOSTS INTERNET,BA0000290523,147.59,
BIS,The Insolvency Service,01/10/2015,Telecoms,BUSINESS SERVICES DIRECTORATE                                                                       ,FASTHOSTS INTERNET,BA0000290523,109.33,
BIS,The Insolvency Service,01/10/2015,Telecoms,BUSINESS SERVICES DIRECTORATE                                                                       ,FASTHOSTS INTERNET,BA0000290523,180.00,
BIS,The Insolvency Service,01/10/2015,Travel and Subsistence,OFFICIAL RECEIVER SERVICES                                                                          ,FGW E STDO,BA0000290523,44.40,
BIS,The Insolvency Service,07/10/2015,Investigation and Enforcement Costs,INVESTIGATIONS & ENFORCEMENT                                                                        ,FIRST FORENSIC FORUM,BA0000290340,180.00,
BIS,The Insolvency Service,07/10/2015,Training Costs,PEOPLE & CAPABILITY                                                                                 ,FIRST FORENSIC FORUM,BA0000290339,250.00,
BIS,The Insolvency Service,19/10/2015,Accommodation,OFFICIAL RECEIVER SERVICES                                                                          ,FRANK G. BOWEN LTD,BA0000290573,78.00,238504366
BIS,The Insolvency Service,07/10/2015,Investigation and Enforcement Costs,INVESTIGATIONS & ENFORCEMENT                                                                        ,FTI CONSULTING LLP,BA0000290334,902.55,867255490
BIS,The Insolvency Service,05/10/2015,Telecoms,BUSINESS SERVICES DIRECTORATE                                                                       ,GAMMA BUSINESS COMMUNICATIONS LTD,BA0000290362,157.50,823820344
BIS,The Insolvency Service,05/10/2015,Telecoms,BUSINESS SERVICES DIRECTORATE                                                                       ,GAMMA BUSINESS COMMUNICATIONS LTD,BA0000290388,133.60,823820344
BIS,The Insolvency Service,05/10/2015,Telecoms,ESTATES,GAMMA BUSINESS COMMUNICATIONS LTD,BA0000290389,139.64,823820344
BIS,The Insolvency Service,05/10/2015,Telecoms,FINANCE AND COMMERCIAL                                                                              ,GAMMA BUSINESS COMMUNICATIONS LTD,BA0000290362,728.67,823820344
BIS,The Insolvency Service,05/10/2015,Telecoms,FINANCE AND COMMERCIAL                                                                              ,GAMMA BUSINESS COMMUNICATIONS LTD,BA0000290388,861.00,823820344
BIS,The Insolvency Service,05/10/2015,Telecoms,FINANCE AND COMMERCIAL                                                                              ,GAMMA BUSINESS COMMUNICATIONS LTD,BA0000290389,797.06,823820344
BIS,The Insolvency Service,05/10/2015,Telecoms,INFORMATION TECHNOLOGY                                                                              ,GAMMA BUSINESS COMMUNICATIONS LTD,BA0000290362,155.20,823820344
BIS,The Insolvency Service,05/10/2015,Telecoms,INFORMATION TECHNOLOGY                                                                              ,GAMMA BUSINESS COMMUNICATIONS LTD,BA0000290388,171.66,823820344
BIS,The Insolvency Service,05/10/2015,Telecoms,INFORMATION TECHNOLOGY                                                                              ,GAMMA BUSINESS COMMUNICATIONS LTD,BA0000290389,168.40,823820344
BIS,The Insolvency Service,05/10/2015,Telecoms,OFFICIAL RECEIVER SERVICES                                                                          ,GAMMA BUSINESS COMMUNICATIONS LTD,BA0000290362,14.04,823820344
BIS,The Insolvency Service,05/10/2015,Telecoms,OFFICIAL RECEIVER SERVICES                                                                          ,GAMMA BUSINESS COMMUNICATIONS LTD,BA0000290362,28.47,823820344
BIS,The Insolvency Service,05/10/2015,Telecoms,OFFICIAL RECEIVER SERVICES                                                                          ,GAMMA BUSINESS COMMUNICATIONS LTD,BA0000290362,57.92,823820344
BIS,The Insolvency Service,05/10/2015,Telecoms,OFFICIAL RECEIVER SERVICES                                                                          ,GAMMA BUSINESS COMMUNICATIONS LTD,BA0000290362,63.63,823820344
BIS,The Insolvency Service,05/10/2015,Telecoms,OFFICIAL RECEIVER SERVICES                                                                          ,GAMMA BUSINESS COMMUNICATIONS LTD,BA0000290362,90.16,823820344
BIS,The Insolvency Service,05/10/2015,Telecoms,OFFICIAL RECEIVER SERVICES                                                                          ,GAMMA BUSINESS COMMUNICATIONS LTD,BA0000290362,148.80,823820344
BIS,The Insolvency Service,05/10/2015,Telecoms,OFFICIAL RECEIVER SERVICES                                                                          ,GAMMA BUSINESS COMMUNICATIONS LTD,BA0000290362,174.47,823820344
BIS,The Insolvency Service,05/10/2015,Telecoms,OFFICIAL RECEIVER SERVICES                                                                          ,GAMMA BUSINESS COMMUNICATIONS LTD,BA0000290362,190.55,823820344
BIS,The Insolvency Service,05/10/2015,Telecoms,OFFICIAL RECEIVER SERVICES                                                                          ,GAMMA BUSINESS COMMUNICATIONS LTD,BA0000290362,199.33,823820344
BIS,The Insolvency Service,05/10/2015,Telecoms,OFFICIAL RECEIVER SERVICES                                                                          ,GAMMA BUSINESS COMMUNICATIONS LTD,BA0000290362,200.47,823820344
BIS,The Insolvency Service,05/10/2015,Telecoms,OFFICIAL RECEIVER SERVICES                                                                          ,GAMMA BUSINESS COMMUNICATIONS LTD,BA0000290362,288.53,823820344
BIS,The Insolvency Service,05/10/2015,Telecoms,OFFICIAL RECEIVER SERVICES                                                                          ,GAMMA BUSINESS COMMUNICATIONS LTD,BA0000290362,328.96,823820344
BIS,The Insolvency Service,05/10/2015,Telecoms,OFFICIAL RECEIVER SERVICES                                                                          ,GAMMA BUSINESS COMMUNICATIONS LTD,BA0000290362,426.98,823820344
BIS,The Insolvency Service,05/10/2015,Telecoms,OFFICIAL RECEIVER SERVICES                                                                          ,GAMMA BUSINESS COMMUNICATIONS LTD,BA0000290388,14.04,823820344
BIS,The Insolvency Service,05/10/2015,Telecoms,OFFICIAL RECEIVER SERVICES                                                                          ,GAMMA BUSINESS COMMUNICATIONS LTD,BA0000290388,44.98,823820344
BIS,The Insolvency Service,05/10/2015,Telecoms,OFFICIAL RECEIVER SERVICES                                                                          ,GAMMA BUSINESS COMMUNICATIONS LTD,BA0000290388,58.44,823820344
BIS,The Insolvency Service,05/10/2015,Telecoms,OFFICIAL RECEIVER SERVICES                                                                          ,GAMMA BUSINESS COMMUNICATIONS LTD,BA0000290388,90.22,823820344
BIS,The Insolvency Service,05/10/2015,Telecoms,OFFICIAL RECEIVER SERVICES                                                                          ,GAMMA BUSINESS COMMUNICATIONS LTD,BA0000290388,114.45,823820344
BIS,The Insolvency Service,05/10/2015,Telecoms,OFFICIAL RECEIVER SERVICES                                                                          ,GAMMA BUSINESS COMMUNICATIONS LTD,BA0000290388,139.07,823820344
BIS,The Insolvency Service,05/10/2015,Telecoms,OFFICIAL RECEIVER SERVICES                                                                          ,GAMMA BUSINESS COMMUNICATIONS LTD,BA0000290388,147.53,823820344
BIS,The Insolvency Service,05/10/2015,Telecoms,OFFICIAL RECEIVER SERVICES                                                                          ,GAMMA BUSINESS COMMUNICATIONS LTD,BA0000290388,196.41,823820344
BIS,The Insolvency Service,05/10/2015,Telecoms,OFFICIAL RECEIVER SERVICES                                                                          ,GAMMA BUSINESS COMMUNICATIONS LTD,BA0000290388,236.84,823820344
BIS,The Insolvency Service,05/10/2015,Telecoms,OFFICIAL RECEIVER SERVICES                                                                          ,GAMMA BUSINESS COMMUNICATIONS LTD,BA0000290388,254.56,823820344
BIS,The Insolvency Service,05/10/2015,Telecoms,OFFICIAL RECEIVER SERVICES                                                                          ,GAMMA BUSINESS COMMUNICATIONS LTD,BA0000290388,269.75,823820344
BIS,The Insolvency Service,05/10/2015,Telecoms,OFFICIAL RECEIVER SERVICES                                                                          ,GAMMA BUSINESS COMMUNICATIONS LTD,BA0000290388,318.23,823820344
BIS,The Insolvency Service,05/10/2015,Telecoms,OFFICIAL RECEIVER SERVICES                                                                          ,GAMMA BUSINESS COMMUNICATIONS LTD,BA0000290388,344.73,823820344
BIS,The Insolvency Service,05/10/2015,Telecoms,OFFICIAL RECEIVER SERVICES                                                                          ,GAMMA BUSINESS COMMUNICATIONS LTD,BA0000290388,538.56,823820344
BIS,The Insolvency Service,05/10/2015,Telecoms,OFFICIAL RECEIVER SERVICES                                                                          ,GAMMA BUSINESS COMMUNICATIONS LTD,BA0000290389,16.59,823820344
BIS,The Insolvency Service,05/10/2015,Telecoms,OFFICIAL RECEIVER SERVICES                                                                          ,GAMMA BUSINESS COMMUNICATIONS LTD,BA0000290389,57.01,823820344
BIS,The Insolvency Service,05/10/2015,Telecoms,OFFICIAL RECEIVER SERVICES                                                                          ,GAMMA BUSINESS COMMUNICATIONS LTD,BA0000290389,70.11,823820344
BIS,The Insolvency Service,05/10/2015,Telecoms,OFFICIAL RECEIVER SERVICES                                                                          ,GAMMA BUSINESS COMMUNICATIONS LTD,BA0000290389,86.97,823820344
BIS,The Insolvency Service,05/10/2015,Telecoms,OFFICIAL RECEIVER SERVICES                                                                          ,GAMMA BUSINESS COMMUNICATIONS LTD,BA0000290389,90.26,823820344
BIS,The Insolvency Service,05/10/2015,Telecoms,OFFICIAL RECEIVER SERVICES                                                                          ,GAMMA BUSINESS COMMUNICATIONS LTD,BA0000290389,109.63,823820344
BIS,The Insolvency Service,05/10/2015,Telecoms,OFFICIAL RECEIVER SERVICES                                                                          ,GAMMA BUSINESS COMMUNICATIONS LTD,BA0000290389,159.03,823820344
BIS,The Insolvency Service,05/10/2015,Telecoms,OFFICIAL RECEIVER SERVICES                                                                          ,GAMMA BUSINESS COMMUNICATIONS LTD,BA0000290389,167.23,823820344
BIS,The Insolvency Service,05/10/2015,Telecoms,OFFICIAL RECEIVER SERVICES                                                                          ,GAMMA BUSINESS COMMUNICATIONS LTD,BA0000290389,178.94,823820344
BIS,The Insolvency Service,05/10/2015,Telecoms,OFFICIAL RECEIVER SERVICES                                                                          ,GAMMA BUSINESS COMMUNICATIONS LTD,BA0000290389,213.93,823820344
BIS,The Insolvency Service,05/10/2015,Telecoms,OFFICIAL RECEIVER SERVICES                                                                          ,GAMMA BUSINESS COMMUNICATIONS LTD,BA0000290389,231.51,823820344
BIS,The Insolvency Service,05/10/2015,Telecoms,OFFICIAL RECEIVER SERVICES                                                                          ,GAMMA BUSINESS COMMUNICATIONS LTD,BA0000290389,316.82,823820344
BIS,The Insolvency Service,05/10/2015,Telecoms,OFFICIAL RECEIVER SERVICES                                                                          ,GAMMA BUSINESS COMMUNICATIONS LTD,BA0000290389,320.16,823820344
BIS,The Insolvency Service,05/10/2015,Telecoms,OFFICIAL RECEIVER SERVICES                                                                          ,GAMMA BUSINESS COMMUNICATIONS LTD,BA0000290389,513.23,823820344
BIS,The Insolvency Service,01/10/2015,Computer and IT Systems,BUSINESS SERVICES DIRECTORATE                                                                       ,GH GITHUB.COM                                               ,BA0000290523,65.62,
BIS,The Insolvency Service,20/10/2015,Investigation and Enforcement Costs,CUSTOMER AND COMMUNICATIONS                                                                         ,GORKANA GROUP LTD                                           ,BA0000290641,622.79,757158012
BIS,The Insolvency Service,14/10/2015,Legal Costs,PEOPLE & CAPABILITY                                                                                 ,GOVERNMENT LEGAL DEPARTMENT                                 ,BA0000290514,"6,382.96",888823066
BIS,The Insolvency Service,14/10/2015,Legal Costs,PEOPLE & CAPABILITY                                                                                 ,GOVERNMENT LEGAL DEPARTMENT                                 ,BA0000290515,"2,990.40",888823066
BIS,The Insolvency Service,20/10/2015,Investigation and Enforcement Costs,INVESTIGATIONS & ENFORCEMENT                                                                        ,GOVERNMENT LEGAL DEPARTMENT                                 ,BA0000290627,429.80,888823066
BIS,The Insolvency Service,20/10/2015,Investigation and Enforcement Costs,INVESTIGATIONS & ENFORCEMENT                                                                        ,GOVERNMENT LEGAL DEPARTMENT                                 ,BA0000290636,169.80,888823066
BIS,The Insolvency Service,20/10/2015,Investigation and Enforcement Costs,INVESTIGATIONS & ENFORCEMENT                                                                        ,GOVERNMENT LEGAL DEPARTMENT                                 ,BA0000290627,464.40,888823066
BIS,The Insolvency Service,23/10/2015,Legal Costs,PEOPLE & CAPABILITY                                                                                 ,GOVERNMENT LEGAL DEPARTMENT                                 ,BA0000290716,"1,063.80",888823066
BIS,The Insolvency Service,23/10/2015,Legal Costs,PEOPLE & CAPABILITY                                                                                 ,GOVERNMENT LEGAL DEPARTMENT                                 ,BA0000290721,"2,885.04",888823066
BIS,The Insolvency Service,28/10/2015,Legal Costs,BUSINESS SERVICES DIRECTORATE                                                                       ,GOVERNMENT LEGAL DEPARTMENT                                 ,BA0000290780,246.24,888823066
BIS,The Insolvency Service,28/10/2015,Investigation and Enforcement Costs,INVESTIGATIONS & ENFORCEMENT                                                                        ,GOVERNMENT LEGAL DEPARTMENT                                 ,BA0000290776,166.00,888823066
BIS,The Insolvency Service,28/10/2015,Investigation and Enforcement Costs,INVESTIGATIONS & ENFORCEMENT                                                                        ,GOVERNMENT LEGAL DEPARTMENT                                 ,BA0000290777,66.00,888823066
BIS,The Insolvency Service,01/10/2015,Accommodation,OFFICIAL RECEIVER SERVICES                                                                          ,GREENHAM TRADING LTD,BA0000290523,129.92,823820932
BIS,The Insolvency Service,06/10/2015,Agency Workers,FINANCE AND COMMERCIAL                                                                              ,HAYS SPECIALIST RECRUITMENT LTD,BA0000290293,"2,700.00",773695871
BIS,The Insolvency Service,06/10/2015,Agency Workers,FINANCE AND COMMERCIAL                                                                              ,HAYS SPECIALIST RECRUITMENT LTD,BA0000290294,"2,700.00",773695871
BIS,The Insolvency Service,06/10/2015,Agency Workers,FINANCE AND COMMERCIAL                                                                              ,HAYS SPECIALIST RECRUITMENT LTD,BA0000290295,"2,700.00",773695871
BIS,The Insolvency Service,06/10/2015,Agency Workers,FINANCE AND COMMERCIAL                                                                              ,HAYS SPECIALIST RECRUITMENT LTD,BA0000290296,"2,700.00",773695871
BIS,The Insolvency Service,06/10/2015,Agency Workers,FINANCE AND COMMERCIAL                                                                              ,HAYS SPECIALIST RECRUITMENT LTD,BA0000290297,"2,700.00",773695871
BIS,The Insolvency Service,06/10/2015,Agency Workers,FINANCE AND COMMERCIAL                                                                              ,HAYS SPECIALIST RECRUITMENT LTD,BA0000290298,"2,700.00",773695871
BIS,The Insolvency Service,06/10/2015,Agency Workers,FINANCE AND COMMERCIAL                                                                              ,HAYS SPECIALIST RECRUITMENT LTD,BA0000290299,"2,700.00",773695871
BIS,The Insolvency Service,06/10/2015,Agency Workers,FINANCE AND COMMERCIAL                                                                              ,HAYS SPECIALIST RECRUITMENT LTD,BA0000290300,"2,700.00",773695871
BIS,The Insolvency Service,06/10/2015,Agency Workers,FINANCE AND COMMERCIAL                                                                              ,HAYS SPECIALIST RECRUITMENT LTD,BA0000290301,"2,700.00",773695871
BIS,The Insolvency Service,06/10/2015,Agency Workers,FINANCE AND COMMERCIAL                                                                              ,HAYS SPECIALIST RECRUITMENT LTD,BA0000290302,"2,700.00",773695871
BIS,The Insolvency Service,06/10/2015,Agency Workers,FINANCE AND COMMERCIAL                                                                              ,HAYS SPECIALIST RECRUITMENT LTD,BA0000290303,"2,700.00",773695871
BIS,The Insolvency Service,06/10/2015,Agency Workers,FINANCE AND COMMERCIAL                                                                              ,HAYS SPECIALIST RECRUITMENT LTD,BA0000290304,"2,700.00",773695871
BIS,The Insolvency Service,06/10/2015,Agency Workers,FINANCE AND COMMERCIAL                                                                              ,HAYS SPECIALIST RECRUITMENT LTD,BA0000290305,"2,700.00",773695871
BIS,The Insolvency Service,07/10/2015,Agency Workers,FINANCE AND COMMERCIAL                                                                              ,HAYS SPECIALIST RECRUITMENT LTD,BA0000290318,429.60,773695871
BIS,The Insolvency Service,14/10/2015,Employee Related Costs,FINANCE AND COMMERCIAL                                                                              ,HAYS SPECIALIST RECRUITMENT LTD,BA0000290504,"16,398.30",773695871
BIS,The Insolvency Service,13/10/2015,Employee Related Costs,PEOPLE & CAPABILITY                                                                                 ,HEALTH MANAGEMENT LTD,BA0000290462,"4,955.88",792250621
BIS,The Insolvency Service,13/10/2015,Employee Related Costs,PEOPLE & CAPABILITY                                                                                 ,HEALTH MANAGEMENT LTD,BA0000290463,"1,848.00",792250621
BIS,The Insolvency Service,12/10/2015,Accommodation,ESTATES,HM LAND REGISTRY,BA0000290447,767.63,
BIS,The Insolvency Service,12/10/2015,Accommodation,ESTATES,HM LAND REGISTRY,BA0000290447,529.71,
BIS,The Insolvency Service,23/10/2015,Accommodation,ESTATES                                                                                             ,HM LAND REGISTRY,BA0000290718,"19,567.73",
BIS,The Insolvency Service,23/10/2015,Accommodation,ESTATES                                                                                             ,HM LAND REGISTRY,BA0000290718,"18,809.53",
BIS,The Insolvency Service,23/10/2015,Accommodation,ESTATES                                                                                             ,HM LAND REGISTRY,BA0000290718,"27,813.20",
BIS,The Insolvency Service,02/10/2015,Investigation and Enforcement Costs,OFFICIAL RECEIVER SERVICES                                                                          ,HMCTS,BA0000290159,480.00,
BIS,The Insolvency Service,02/10/2015,Investigation and Enforcement Costs,OFFICIAL RECEIVER SERVICES                                                                          ,HMCTS,BA0000290160,480.00,
BIS,The Insolvency Service,02/10/2015,Investigation and Enforcement Costs,OFFICIAL RECEIVER SERVICES                                                                          ,HMCTS,BA0000290161,480.00,
BIS,The Insolvency Service,02/10/2015,Investigation and Enforcement Costs,OFFICIAL RECEIVER SERVICES                                                                          ,HMCTS,BA0000290162,480.00,
BIS,The Insolvency Service,02/10/2015,Investigation and Enforcement Costs,OFFICIAL RECEIVER SERVICES                                                                          ,HMCTS,BA0000290163,480.00,
BIS,The Insolvency Service,02/10/2015,Investigation and Enforcement Costs,OFFICIAL RECEIVER SERVICES                                                                          ,HMCTS,BA0000290171,480.00,
BIS,The Insolvency Service,02/10/2015,Investigation and Enforcement Costs,OFFICIAL RECEIVER SERVICES                                                                          ,HMCTS,BA0000290172,480.00,
BIS,The Insolvency Service,02/10/2015,Investigation and Enforcement Costs,OFFICIAL RECEIVER SERVICES                                                                          ,HMCTS,BA0000290173,280.00,
BIS,The Insolvency Service,12/10/2015,Investigation and Enforcement Costs,OFFICIAL RECEIVER SERVICES                                                                          ,HMCTS,BA0000290363,280.00,
BIS,The Insolvency Service,12/10/2015,Investigation and Enforcement Costs,OFFICIAL RECEIVER SERVICES                                                                          ,HMCTS,BA0000290366,280.00,
BIS,The Insolvency Service,12/10/2015,Investigation and Enforcement Costs,OFFICIAL RECEIVER SERVICES                                                                          ,HMCTS,BA0000290432,280.00,
BIS,The Insolvency Service,19/10/2015,Investigation and Enforcement Costs,OFFICIAL RECEIVER SERVICES                                                                          ,HMCTS,BA0000290513,480.00,
BIS,The Insolvency Service,23/10/2015,Investigation and Enforcement Costs,OFFICIAL RECEIVER SERVICES                                                                          ,HMCTS,BA0000290722,280.00,
BIS,The Insolvency Service,12/10/2015,Investigation and Enforcement Costs,OFFICIAL RECEIVER SERVICES                                                                          ,HMCTS                                                       ,BA0000290338,280.00,
BIS,The Insolvency Service,29/10/2015,Investigation and Enforcement Costs,OFFICIAL RECEIVER SERVICES                                                                          ,HMCTS                                                       ,BA0000290731,480.00,
BIS,The Insolvency Service,06/10/2015,Employee Related Costs,PEOPLE & CAPABILITY                                                                                 ,HMRC,BA0000290284,75.00,888848141
BIS,The Insolvency Service,29/10/2015,Department for Business Innovation and Skills,PEOPLE & CAPABILITY                                                                                 ,HMRC,BA0000290831,100.00,888848141
BIS,The Insolvency Service,14/10/2015,Investigation and Enforcement Costs,INVESTIGATIONS & ENFORCEMENT                                                                        ,HOWES PERCIVAL,BA0000290508,13.00,119523573
BIS,The Insolvency Service,14/10/2015,Investigation and Enforcement Costs,INVESTIGATIONS & ENFORCEMENT                                                                        ,HOWES PERCIVAL,BA0000290508,"19,730.15",119523573
BIS,The Insolvency Service,14/10/2015,Investigation and Enforcement Costs,INVESTIGATIONS & ENFORCEMENT                                                                        ,HOWES PERCIVAL,BA0000290512,16.00,119523573
BIS,The Insolvency Service,14/10/2015,Investigation and Enforcement Costs,INVESTIGATIONS & ENFORCEMENT                                                                        ,HOWES PERCIVAL,BA0000290512,"20,024.20",119523573
BIS,The Insolvency Service,14/10/2015,Investigation and Enforcement Costs,INVESTIGATIONS & ENFORCEMENT                                                                        ,HOWES PERCIVAL,BA0000290510,236.00,119523573
BIS,The Insolvency Service,14/10/2015,Investigation and Enforcement Costs,INVESTIGATIONS & ENFORCEMENT                                                                        ,HOWES PERCIVAL,BA0000290510,"3,163.20",119523573
BIS,The Insolvency Service,14/10/2015,Investigation and Enforcement Costs,INVESTIGATIONS & ENFORCEMENT                                                                        ,HOWES PERCIVAL,BA0000290511,157.00,119523573
BIS,The Insolvency Service,14/10/2015,Investigation and Enforcement Costs,INVESTIGATIONS & ENFORCEMENT                                                                        ,HOWES PERCIVAL,BA0000290511,"9,976.60",119523573
BIS,The Insolvency Service,14/10/2015,Investigation and Enforcement Costs,INVESTIGATIONS & ENFORCEMENT                                                                        ,HOWES PERCIVAL,BA0000290509,"6,467.36",119523573
BIS,The Insolvency Service,14/10/2015,Investigation and Enforcement Costs,INVESTIGATIONS & ENFORCEMENT                                                                        ,HOWES PERCIVAL,BA0000290509,"15,850.00",119523573
BIS,The Insolvency Service,14/10/2015,Investigation and Enforcement Costs,INVESTIGATIONS & ENFORCEMENT                                                                        ,HOWES PERCIVAL,BA0000290520,155.00,119523573
BIS,The Insolvency Service,14/10/2015,Investigation and Enforcement Costs,INVESTIGATIONS & ENFORCEMENT                                                                        ,HOWES PERCIVAL,BA0000290520,"1,628.80",119523573
BIS,The Insolvency Service,20/10/2015,Investigation and Enforcement Costs,INVESTIGATIONS & ENFORCEMENT                                                                        ,HOWES PERCIVAL,BA0000290623,"21,111.00",119523573
BIS,The Insolvency Service,20/10/2015,Investigation and Enforcement Costs,INVESTIGATIONS & ENFORCEMENT                                                                        ,HOWES PERCIVAL,BA0000290624,"33,537.63",119523573
BIS,The Insolvency Service,20/10/2015,Investigation and Enforcement Costs,INVESTIGATIONS & ENFORCEMENT                                                                        ,HOWES PERCIVAL,BA0000290622,"6,174.07",119523573
BIS,The Insolvency Service,20/10/2015,Investigation and Enforcement Costs,INVESTIGATIONS & ENFORCEMENT                                                                        ,HOWES PERCIVAL,BA0000290625,"3,441.63",119523573
BIS,The Insolvency Service,06/10/2015,Insolvency Case Related Costs,OFFICIAL RECEIVER SERVICES                                                                          ,HPI LTD,BA0000290292,3.60,942407139
BIS,The Insolvency Service,07/10/2015,Insolvency Case Related Costs,OFFICIAL RECEIVER SERVICES                                                                          ,HPI LTD,BA0000290316,12.79,942407139
BIS,The Insolvency Service,07/10/2015,Insolvency Case Related Costs,OFFICIAL RECEIVER SERVICES                                                                          ,HPI LTD,BA0000290317,7.20,942407139
BIS,The Insolvency Service,07/10/2015,Insolvency Case Related Costs,OFFICIAL RECEIVER SERVICES                                                                          ,HPI LTD,BA0000290320,71.20,942407139
BIS,The Insolvency Service,07/10/2015,Insolvency Case Related Costs,OFFICIAL RECEIVER SERVICES                                                                          ,HPI LTD,BA0000290321,134.00,942407139
BIS,The Insolvency Service,07/10/2015,Insolvency Case Related Costs,OFFICIAL RECEIVER SERVICES                                                                          ,HPI LTD,BA0000290322,78.02,942407139
BIS,The Insolvency Service,12/10/2015,Insolvency Case Related Costs,OFFICIAL RECEIVER SERVICES                                                                          ,HPI LTD,BA0000290436,29.38,942407139
BIS,The Insolvency Service,01/10/2015,Travel and Subsistence,FINANCE AND COMMERCIAL,HRG UK,BA0000290523,5.99,
BIS,The Insolvency Service,01/10/2015,Travel and Subsistence,FINANCE AND COMMERCIAL,HRG UK,BA0000290523,6.29,
BIS,The Insolvency Service,01/10/2015,Travel and Subsistence,FINANCE AND COMMERCIAL,HRG UK,BA0000290523,195.68,
BIS,The Insolvency Service,01/10/2015,Travel and Subsistence,FINANCE AND COMMERCIAL,HRG UK,BA0000290523,-117.00,
BIS,The Insolvency Service,01/10/2015,Travel and Subsistence,FINANCE AND COMMERCIAL,HRG UK,BA0000290523,45.00,
BIS,The Insolvency Service,01/10/2015,Travel and Subsistence,FINANCE AND COMMERCIAL,HRG UK,BA0000290523,117.00,
BIS,The Insolvency Service,01/10/2015,Travel and Subsistence,FINANCE AND COMMERCIAL,HRG UK,BA0000290523,6.11,
BIS,The Insolvency Service,01/10/2015,Travel and Subsistence,FINANCE AND COMMERCIAL,HRG UK,BA0000290523,164.98,
BIS,The Insolvency Service,01/10/2015,Travel and Subsistence,FINANCE AND COMMERCIAL,HRG UK,BA0000290523,297.00,
BIS,The Insolvency Service,01/10/2015,Travel and Subsistence,FINANCE AND COMMERCIAL,HRG UK,BA0000290523,5.43,
BIS,The Insolvency Service,01/10/2015,Travel and Subsistence,FINANCE AND COMMERCIAL,HRG UK,BA0000290523,49.99,
BIS,The Insolvency Service,01/10/2015,Travel and Subsistence,FINANCE AND COMMERCIAL,HRG UK,BA0000290523,99.62,
BIS,The Insolvency Service,01/10/2015,Travel and Subsistence,FINANCE AND COMMERCIAL,HRG UK,BA0000290523,95.00,
BIS,The Insolvency Service,01/10/2015,Travel and Subsistence,FINANCE AND COMMERCIAL,HRG UK,BA0000290523,9.81,
BIS,The Insolvency Service,01/10/2015,Travel and Subsistence,FINANCE AND COMMERCIAL,HRG UK,BA0000290523,-70.00,
BIS,The Insolvency Service,01/10/2015,Travel and Subsistence,FINANCE AND COMMERCIAL,HRG UK,BA0000290523,70.00,
BIS,The Insolvency Service,01/10/2015,Travel and Subsistence,FINANCE AND COMMERCIAL,HRG UK,BA0000290523,5.81,
BIS,The Insolvency Service,01/10/2015,Travel and Subsistence,FINANCE AND COMMERCIAL,HRG UK,BA0000290523,114.99,
BIS,The Insolvency Service,01/10/2015,Travel and Subsistence,FINANCE AND COMMERCIAL,HRG UK,BA0000290523,74.00,
BIS,The Insolvency Service,01/10/2015,Travel and Subsistence,FINANCE AND COMMERCIAL,HRG UK,BA0000290523,78.50,
BIS,The Insolvency Service,01/10/2015,Travel and Subsistence,FINANCE AND COMMERCIAL,HRG UK,BA0000290523,158.00,
BIS,The Insolvency Service,01/10/2015,Travel and Subsistence,FINANCE AND COMMERCIAL,HRG UK,BA0000290523,66.00,
BIS,The Insolvency Service,01/10/2015,Travel and Subsistence,FINANCE AND COMMERCIAL,HRG UK,BA0000290523,119.00,
BIS,The Insolvency Service,01/10/2015,Travel and Subsistence,FINANCE AND COMMERCIAL,HRG UK,BA0000290523,121.80,
BIS,The Insolvency Service,01/10/2015,Travel and Subsistence,FINANCE AND COMMERCIAL,HRG UK,BA0000290523,5.99,
BIS,The Insolvency Service,01/10/2015,Travel and Subsistence,FINANCE AND COMMERCIAL,HRG UK,BA0000290523,143.98,
BIS,The Insolvency Service,01/10/2015,Travel and Subsistence,FINANCE AND COMMERCIAL,HRG UK,BA0000290523,59.00,
BIS,The Insolvency Service,01/10/2015,Travel and Subsistence,FINANCE AND COMMERCIAL,HRG UK,BA0000290523,167.87,
BIS,The Insolvency Service,01/10/2015,Travel and Subsistence,FINANCE AND COMMERCIAL,HRG UK,BA0000290523,312.40,
BIS,The Insolvency Service,01/10/2015,Travel and Subsistence,FINANCE AND COMMERCIAL,HRG UK,BA0000290523,-59.00,
BIS,The Insolvency Service,01/10/2015,Travel and Subsistence,FINANCE AND COMMERCIAL,HRG UK,BA0000290523,59.00,
BIS,The Insolvency Service,01/10/2015,Travel and Subsistence,FINANCE AND COMMERCIAL,HRG UK,BA0000290523,69.00,
BIS,The Insolvency Service,01/10/2015,Travel and Subsistence,BUSINESS SERVICES DIRECTORATE                                                                       ,IBIS MANCHESTER CENTRE                                      ,BA0000290523,25.50,
BIS,The Insolvency Service,15/10/2015,Accommodation,FINANCE AND COMMERCIAL                                                                              ,INDOOR ENVIRONMENTAL SYSTEMS LIMITED                        ,BA0000290541,"8,481.60",150482234
BIS,The Insolvency Service,15/10/2015,Accommodation,FINANCE AND COMMERCIAL                                                                              ,INDOOR ENVIRONMENTAL SYSTEMS LIMITED                        ,BA0000290541,"42,408.00",150482234
BIS,The Insolvency Service,06/10/2015,Insolvency Case Related Costs,OFFICIAL RECEIVER SERVICES                                                                          ,INSOLVENCY SERVICE,BA0000290281,20.00,
BIS,The Insolvency Service,08/10/2015,Insolvency Case Related Costs,FINANCE AND COMMERCIAL,INSOLVENCY SERVICE,BA0000290368,14.27,
BIS,The Insolvency Service,08/10/2015,Insolvency Case Related Costs,FINANCE AND COMMERCIAL,INSOLVENCY SERVICE,BA0000290368,70.54,
BIS,The Insolvency Service,20/10/2015,Insolvency Case Related Costs,FINANCE AND COMMERCIAL,INSOLVENCY SERVICE,BA0000290642,455.00,
BIS,The Insolvency Service,22/10/2015,Insolvency Case Related Costs,OFFICIAL RECEIVER SERVICES                                                                          ,INSOLVENCY SERVICE,BA0000290683,40.00,
BIS,The Insolvency Service,28/10/2015,Insolvency Case Related Costs,FINANCE AND COMMERCIAL,INSOLVENCY SERVICE,BA0000290795,"7,906.40",
BIS,The Insolvency Service,28/10/2015,Insolvency Case Related Costs,FINANCE AND COMMERCIAL,INSOLVENCY SERVICE,BA0000290785,894.63,
BIS,The Insolvency Service,28/10/2015,Insolvency Case Related Costs,FINANCE AND COMMERCIAL,INSOLVENCY SERVICE,BA0000290787,84.81,
BIS,The Insolvency Service,05/10/2015,Agency Workers,FINANCE AND COMMERCIAL                                                                              ,INTERQUEST GROUP (FORMALLY SAND RESOURCES LTD)              ,BA0000290253,"11,860.80",820437161
BIS,The Insolvency Service,05/10/2015,Agency Workers,FINANCE AND COMMERCIAL                                                                              ,INTERQUEST GROUP (FORMALLY SAND RESOURCES LTD)              ,BA0000290254,"13,230.00",820437161
BIS,The Insolvency Service,05/10/2015,Agency Workers,FINANCE AND COMMERCIAL                                                                              ,INTERQUEST GROUP (FORMALLY SAND RESOURCES LTD)              ,BA0000290255,"10,584.00",820437161
BIS,The Insolvency Service,08/10/2015,Agency Workers,FINANCE AND COMMERCIAL                                                                              ,INTERQUEST GROUP (FORMALLY SAND RESOURCES LTD)              ,BA0000290372,"10,054.80",820437161
BIS,The Insolvency Service,01/10/2015,Office Supplies and Services,INVESTIGATIONS & ENFORCEMENT                                                                        ,JOHN WOODS MASTER LOCKSMITHS                                ,BA0000290523,35.63,161145886
BIS,The Insolvency Service,15/10/2015,Accommodation,FINANCE AND COMMERCIAL                                                                              ,JONES LANG LASALLE,BA0000290538,"1,848.00",245894718
BIS,The Insolvency Service,07/10/2015,Agency Workers,FINANCE AND COMMERCIAL                                                                              ,JUMAR SOLUTIONS LTD                                         ,BA0000290326,"11,088.00",
BIS,The Insolvency Service,07/10/2015,Agency Workers,FINANCE AND COMMERCIAL                                                                              ,JUMAR SOLUTIONS LTD                                         ,BA0000290329,"11,616.00",
BIS,The Insolvency Service,07/10/2015,Agency Workers,FINANCE AND COMMERCIAL                                                                              ,JUMAR SOLUTIONS LTD                                         ,BA0000290330,"8,184.00",
BIS,The Insolvency Service,07/10/2015,Agency Workers,FINANCE AND COMMERCIAL                                                                              ,JUMAR SOLUTIONS LTD                                         ,BA0000290331,"10,824.00",
BIS,The Insolvency Service,07/10/2015,Agency Workers,FINANCE AND COMMERCIAL                                                                              ,JUMAR SOLUTIONS LTD                                         ,BA0000290332,"11,616.00",
BIS,The Insolvency Service,07/10/2015,Agency Workers,FINANCE AND COMMERCIAL                                                                              ,JUMAR SOLUTIONS LTD                                         ,BA0000290333,"10,956.00",
BIS,The Insolvency Service,23/10/2015,Translation Costs,OFFICIAL RECEIVER SERVICES                                                                          ,K INTERNATIONAL PLC,BA0000290714,848.45,600413800
BIS,The Insolvency Service,28/10/2015,Training Costs,PEOPLE & CAPABILITY                                                                                 ,KAPLAN FINANCIAL,BA0000290751,507.50,
BIS,The Insolvency Service,28/10/2015,Training Costs,PEOPLE & CAPABILITY                                                                                 ,KAPLAN FINANCIAL,BA0000290752,24.17,
BIS,The Insolvency Service,28/10/2015,Training Costs,PEOPLE & CAPABILITY                                                                                 ,KAPLAN FINANCIAL,BA0000290752,59.00,
BIS,The Insolvency Service,22/10/2015,Telecoms,OFFICIAL RECEIVER SERVICES                                                                          ,KCOM GROUP PLC,BA0000290680,306.72,647235137
BIS,The Insolvency Service,22/10/2015,Telecoms,OFFICIAL RECEIVER SERVICES                                                                          ,KCOM GROUP PLC,BA0000290681,13.50,647235137
BIS,The Insolvency Service,22/10/2015,Telecoms,OFFICIAL RECEIVER SERVICES                                                                          ,KCOM GROUP PLC,BA0000290682,10.00,647235137
BIS,The Insolvency Service,30/10/2015,Accounting and Banking,FINANCE AND COMMERCIAL,KDS UK LTD,BA0000290845,"2,786.40",776463881
BIS,The Insolvency Service,30/10/2015,Accounting and Banking,FINANCE AND COMMERCIAL,KDS UK LTD,BA0000290846,"2,786.40",776463881
BIS,The Insolvency Service,15/10/2015,Accommodation,ESTATES,KINGSTON (SENATE) LTD,BA0000290540,"41,625.60",140357635
BIS,The Insolvency Service,05/10/2015,Computer and IT Systems,                                                                                                    ,KYPERA LTD,BA0000290257,"4,320.00",813905437
BIS,The Insolvency Service,05/10/2015,Training Costs,                                                                                                    ,KYPERA LTD,BA0000290251,"2,200.00",813905437
BIS,The Insolvency Service,05/10/2015,Training Costs,                                                                                                    ,KYPERA LTD,BA0000290256,35.10,813905437
BIS,The Insolvency Service,05/10/2015,Training Costs,                                                                                                    ,KYPERA LTD,BA0000290256,"2,750.00",813905437
BIS,The Insolvency Service,01/10/2015,Travel and Subsistence,INVESTIGATIONS & ENFORCEMENT                                                                        ,LONDON & SOUTH EAS,BA0000290523,12.00,
BIS,The Insolvency Service,01/10/2015,Travel and Subsistence,INVESTIGATIONS & ENFORCEMENT                                                                        ,LONDON & SOUTH EAS,BA0000290523,17.00,
BIS,The Insolvency Service,01/10/2015,Travel and Subsistence,INVESTIGATIONS & ENFORCEMENT                                                                        ,LONDON & SOUTH EAS,BA0000290523,17.00,
BIS,The Insolvency Service,01/10/2015,Travel and Subsistence,OFFICIAL RECEIVER SERVICES                                                                          ,LONDON MIDLAND SEL,BA0000290523,249.50,
BIS,The Insolvency Service,01/10/2015,Travel and Subsistence,OFFICIAL RECEIVER SERVICES                                                                          ,LUL TICKET MACHINE,BA0000290523,12.00,
BIS,The Insolvency Service,01/10/2015,Travel and Subsistence,OFFICIAL RECEIVER SERVICES                                                                          ,LUL TICKET MACHINE,BA0000290523,12.00,
BIS,The Insolvency Service,01/10/2015,Travel and Subsistence,INVESTIGATIONS & ENFORCEMENT                                                                        ,LUL TICKET MACHINE,BA0000290523,20.00,
BIS,The Insolvency Service,01/10/2015,Travel and Subsistence,OFFICIAL RECEIVER SERVICES                                                                          ,LUL TICKET MACHINE,BA0000290523,12.00,
BIS,The Insolvency Service,01/10/2015,Travel and Subsistence,OFFICIAL RECEIVER SERVICES                                                                          ,LUL TICKET MACHINE,BA0000290523,20.00,
BIS,The Insolvency Service,01/10/2015,Travel and Subsistence,OFFICIAL RECEIVER SERVICES                                                                          ,LUL TICKET MACHINE,BA0000290523,12.00,
BIS,The Insolvency Service,01/10/2015,Travel and Subsistence,OFFICIAL RECEIVER SERVICES                                                                          ,LUL TICKET MACHINE,BA0000290523,12.00,
BIS,The Insolvency Service,01/10/2015,Travel and Subsistence,OFFICIAL RECEIVER SERVICES                                                                          ,LUL TICKET MACHINE,BA0000290523,12.00,
BIS,The Insolvency Service,01/10/2015,Travel and Subsistence,OFFICIAL RECEIVER SERVICES                                                                          ,LUL TICKET MACHINE,BA0000290523,9.60,
BIS,The Insolvency Service,01/10/2015,Travel and Subsistence,OFFICIAL RECEIVER SERVICES                                                                          ,LUL TICKET MACHINE,BA0000290523,9.60,
BIS,The Insolvency Service,01/10/2015,Travel and Subsistence,OFFICIAL RECEIVER SERVICES                                                                          ,LUL TICKET MACHINE,BA0000290523,9.60,
BIS,The Insolvency Service,01/10/2015,Travel and Subsistence,OFFICIAL RECEIVER SERVICES                                                                          ,LUL TICKET MACHINE,BA0000290523,12.00,
BIS,The Insolvency Service,01/10/2015,Travel and Subsistence,INVESTIGATIONS & ENFORCEMENT                                                                        ,LUL TICKET MACHINE,BA0000290523,20.00,
BIS,The Insolvency Service,01/10/2015,Travel and Subsistence,BUSINESS SERVICES DIRECTORATE                                                                       ,M6 TOLL,BA0000290523,5.50,
BIS,The Insolvency Service,01/10/2015,Travel and Subsistence,BUSINESS SERVICES DIRECTORATE                                                                       ,M6 TOLL,BA0000290523,5.50,
BIS,The Insolvency Service,20/10/2015,Investigation and Enforcement Costs,INVESTIGATIONS & ENFORCEMENT                                                                        ,METROPOLITANO LTD                                           ,BA0000290646,450.00,
BIS,The Insolvency Service,06/10/2015,Agency Workers,FINANCE AND COMMERCIAL                                                                              ,MICHAEL PAGE INTERNATIONAL RECRUITMENT LTD,BA0000290272,"3,118.50",354259936
BIS,The Insolvency Service,06/10/2015,Agency Workers,FINANCE AND COMMERCIAL                                                                              ,MICHAEL PAGE INTERNATIONAL RECRUITMENT LTD,BA0000290288,"2,700.00",354259936
BIS,The Insolvency Service,08/10/2015,Agency Workers,FINANCE AND COMMERCIAL                                                                              ,MICHAEL PAGE INTERNATIONAL RECRUITMENT LTD,BA0000290336,"2,494.80",354259936
BIS,The Insolvency Service,08/10/2015,Agency Workers,FINANCE AND COMMERCIAL                                                                              ,MICHAEL PAGE INTERNATIONAL RECRUITMENT LTD,BA0000290373,"3,049.20",354259936
BIS,The Insolvency Service,08/10/2015,Agency Workers,FINANCE AND COMMERCIAL                                                                              ,MICHAEL PAGE INTERNATIONAL RECRUITMENT LTD,BA0000290374,"3,118.50",354259936
BIS,The Insolvency Service,08/10/2015,Agency Workers,FINANCE AND COMMERCIAL                                                                              ,MICHAEL PAGE INTERNATIONAL RECRUITMENT LTD,BA0000290375,"3,118.50",354259936
BIS,The Insolvency Service,08/10/2015,Agency Workers,FINANCE AND COMMERCIAL                                                                              ,MICHAEL PAGE INTERNATIONAL RECRUITMENT LTD,BA0000290376,"3,118.50",354259936
BIS,The Insolvency Service,08/10/2015,Agency Workers,FINANCE AND COMMERCIAL                                                                              ,MICHAEL PAGE INTERNATIONAL RECRUITMENT LTD,BA0000290377,"2,494.80",354259936
BIS,The Insolvency Service,08/10/2015,Agency Workers,FINANCE AND COMMERCIAL                                                                              ,MICHAEL PAGE INTERNATIONAL RECRUITMENT LTD,BA0000290378,"3,118.50",354259936
BIS,The Insolvency Service,08/10/2015,Agency Workers,FINANCE AND COMMERCIAL                                                                              ,MICHAEL PAGE INTERNATIONAL RECRUITMENT LTD,BA0000290379,"3,118.50",354259936
BIS,The Insolvency Service,08/10/2015,Agency Workers,FINANCE AND COMMERCIAL                                                                              ,MICHAEL PAGE INTERNATIONAL RECRUITMENT LTD,BA0000290380,"-2,772.00",354259936
BIS,The Insolvency Service,08/10/2015,Agency Workers,FINANCE AND COMMERCIAL                                                                              ,MICHAEL PAGE INTERNATIONAL RECRUITMENT LTD,BA0000290381,"-2,772.00",354259936
BIS,The Insolvency Service,08/10/2015,Agency Workers,FINANCE AND COMMERCIAL                                                                              ,MICHAEL PAGE INTERNATIONAL RECRUITMENT LTD,BA0000290382,"-2,772.00",354259936
BIS,The Insolvency Service,08/10/2015,Agency Workers,FINANCE AND COMMERCIAL                                                                              ,MICHAEL PAGE INTERNATIONAL RECRUITMENT LTD,BA0000290383,"-2,772.00",354259936
BIS,The Insolvency Service,08/10/2015,Agency Workers,FINANCE AND COMMERCIAL                                                                              ,MICHAEL PAGE INTERNATIONAL RECRUITMENT LTD,BA0000290384,"-2,217.60",354259936
BIS,The Insolvency Service,13/10/2015,Agency Workers,FINANCE AND COMMERCIAL                                                                              ,MICHAEL PAGE INTERNATIONAL RECRUITMENT LTD,BA0000290455,"3,118.50",354259936
BIS,The Insolvency Service,13/10/2015,Agency Workers,FINANCE AND COMMERCIAL                                                                              ,MICHAEL PAGE INTERNATIONAL RECRUITMENT LTD,BA0000290460,"1,871.10",354259936
BIS,The Insolvency Service,13/10/2015,Agency Workers,FINANCE AND COMMERCIAL                                                                              ,MICHAEL PAGE INTERNATIONAL RECRUITMENT LTD,BA0000290456,"2,700.00",354259936
BIS,The Insolvency Service,13/10/2015,Agency Workers,FINANCE AND COMMERCIAL                                                                              ,MICHAEL PAGE INTERNATIONAL RECRUITMENT LTD,BA0000290465,540.00,354259936
BIS,The Insolvency Service,28/10/2015,Agency Workers,FINANCE AND COMMERCIAL                                                                              ,MICHAEL PAGE INTERNATIONAL RECRUITMENT LTD,BA0000290797,"3,118.50",354259936
BIS,The Insolvency Service,28/10/2015,Agency Workers,FINANCE AND COMMERCIAL                                                                              ,MICHAEL PAGE INTERNATIONAL RECRUITMENT LTD,BA0000290796,"4,860.00",354259936
BIS,The Insolvency Service,30/10/2015,Agency Workers,FINANCE AND COMMERCIAL                                                                              ,MICHAEL PAGE INTERNATIONAL RECRUITMENT LTD,BA0000290844,"2,494.80",354259936
BIS,The Insolvency Service,19/10/2015,Conferences,CUSTOMER AND COMMUNICATIONS                                                                         ,MU ENTERPRISES LTD                                          ,BA0000290525,330.00,
BIS,The Insolvency Service,06/10/2015,Training Costs,OFFICIAL RECEIVER SERVICES                                                                          ,NATIONAL ASSOCIATION FOR MENTAL HEALTH                      ,BA0000290271,90.00,
BIS,The Insolvency Service,06/10/2015,Training Costs,PEOPLE & CAPABILITY                                                                                 ,NATIONAL ASSOCIATION FOR MENTAL HEALTH                      ,BA0000290271,"1,195.00",
BIS,The Insolvency Service,01/10/2015,Travel and Subsistence,BUSINESS SERVICES DIRECTORATE                                                                       ,NCP EDINBURGH AIRPORT                                       ,BA0000290523,11.49,
BIS,The Insolvency Service,01/10/2015,Travel and Subsistence,BUSINESS SERVICES DIRECTORATE                                                                       ,NCP PARKING,BA0000290523,12.50,
BIS,The Insolvency Service,12/10/2015,Office Supplies and Services,OFFICIAL RECEIVER SERVICES                                                                          ,NEOPOST LIMITED (CONSUMABLES),BA0000290418,155.39,597265489
BIS,The Insolvency Service,19/10/2015,Office Supplies and Services,OFFICIAL RECEIVER SERVICES                                                                          ,NEOPOST LIMITED (CONSUMABLES),BA0000290575,155.39,597265489
BIS,The Insolvency Service,28/10/2015,Office Supplies and Services,OFFICIAL RECEIVER SERVICES                                                                          ,NEOPOST LIMITED (CONSUMABLES),BA0000290774,301.78,597265489
BIS,The Insolvency Service,12/10/2015,Postage,BUSINESS SERVICES DIRECTORATE                                                                       ,NEOPOST LTD - FRANKING TOP UPS,BA0000290438,"1,000.00",
BIS,The Insolvency Service,12/10/2015,Postage,BUSINESS SERVICES DIRECTORATE                                                                       ,NEOPOST LTD - FRANKING TOP UPS,BA0000290435,"1,000.00",
BIS,The Insolvency Service,12/10/2015,Postage,OFFICIAL RECEIVER SERVICES                                                                          ,NEOPOST LTD - FRANKING TOP UPS,BA0000290438,450.00,
BIS,The Insolvency Service,12/10/2015,Postage,OFFICIAL RECEIVER SERVICES                                                                          ,NEOPOST LTD - FRANKING TOP UPS,BA0000290438,500.00,
BIS,The Insolvency Service,12/10/2015,Postage,OFFICIAL RECEIVER SERVICES                                                                          ,NEOPOST LTD - FRANKING TOP UPS,BA0000290438,500.00,
BIS,The Insolvency Service,12/10/2015,Postage,OFFICIAL RECEIVER SERVICES                                                                          ,NEOPOST LTD - FRANKING TOP UPS,BA0000290438,700.00,
BIS,The Insolvency Service,12/10/2015,Postage,OFFICIAL RECEIVER SERVICES                                                                          ,NEOPOST LTD - FRANKING TOP UPS,BA0000290438,950.00,
BIS,The Insolvency Service,12/10/2015,Postage,OFFICIAL RECEIVER SERVICES                                                                          ,NEOPOST LTD - FRANKING TOP UPS,BA0000290438,"1,000.00",
BIS,The Insolvency Service,12/10/2015,Postage,OFFICIAL RECEIVER SERVICES                                                                          ,NEOPOST LTD - FRANKING TOP UPS,BA0000290438,"1,000.00",
BIS,The Insolvency Service,12/10/2015,Postage,OFFICIAL RECEIVER SERVICES                                                                          ,NEOPOST LTD - FRANKING TOP UPS,BA0000290438,"1,000.00",
BIS,The Insolvency Service,12/10/2015,Postage,OFFICIAL RECEIVER SERVICES                                                                          ,NEOPOST LTD - FRANKING TOP UPS,BA0000290438,"1,000.00",
BIS,The Insolvency Service,12/10/2015,Postage,OFFICIAL RECEIVER SERVICES                                                                          ,NEOPOST LTD - FRANKING TOP UPS,BA0000290435,500.00,
BIS,The Insolvency Service,12/10/2015,Postage,OFFICIAL RECEIVER SERVICES                                                                          ,NEOPOST LTD - FRANKING TOP UPS,BA0000290435,500.00,
BIS,The Insolvency Service,12/10/2015,Postage,OFFICIAL RECEIVER SERVICES                                                                          ,NEOPOST LTD - FRANKING TOP UPS,BA0000290435,500.00,
BIS,The Insolvency Service,12/10/2015,Postage,OFFICIAL RECEIVER SERVICES                                                                          ,NEOPOST LTD - FRANKING TOP UPS,BA0000290435,600.00,
BIS,The Insolvency Service,12/10/2015,Postage,OFFICIAL RECEIVER SERVICES                                                                          ,NEOPOST LTD - FRANKING TOP UPS,BA0000290435,700.00,
BIS,The Insolvency Service,12/10/2015,Postage,OFFICIAL RECEIVER SERVICES                                                                          ,NEOPOST LTD - FRANKING TOP UPS,BA0000290435,"1,000.00",
BIS,The Insolvency Service,12/10/2015,Postage,OFFICIAL RECEIVER SERVICES                                                                          ,NEOPOST LTD - FRANKING TOP UPS,BA0000290435,"1,000.00",
BIS,The Insolvency Service,12/10/2015,Postage,OFFICIAL RECEIVER SERVICES                                                                          ,NEOPOST LTD - FRANKING TOP UPS,BA0000290435,"1,000.00",
BIS,The Insolvency Service,13/10/2015,Postage,INFORMATION TECHNOLOGY                                                                              ,NEOPOST LTD - FRANKING TOP UPS,BA0000290457,"5,000.00",
BIS,The Insolvency Service,13/10/2015,Postage,OFFICIAL RECEIVER SERVICES                                                                          ,NEOPOST LTD - FRANKING TOP UPS,BA0000290457,450.00,
BIS,The Insolvency Service,13/10/2015,Postage,OFFICIAL RECEIVER SERVICES                                                                          ,NEOPOST LTD - FRANKING TOP UPS,BA0000290457,500.00,
BIS,The Insolvency Service,13/10/2015,Postage,OFFICIAL RECEIVER SERVICES                                                                          ,NEOPOST LTD - FRANKING TOP UPS,BA0000290457,"1,000.00",
BIS,The Insolvency Service,13/10/2015,Postage,OFFICIAL RECEIVER SERVICES                                                                          ,NEOPOST LTD - FRANKING TOP UPS,BA0000290457,"1,000.00",
BIS,The Insolvency Service,19/10/2015,Postage,BUSINESS SERVICES DIRECTORATE                                                                       ,NEOPOST LTD - FRANKING TOP UPS,BA0000290591,"1,000.00",
BIS,The Insolvency Service,19/10/2015,Postage,INFORMATION TECHNOLOGY                                                                              ,NEOPOST LTD - FRANKING TOP UPS,BA0000290591,"5,000.00",
BIS,The Insolvency Service,19/10/2015,Postage,OFFICIAL RECEIVER SERVICES                                                                          ,NEOPOST LTD - FRANKING TOP UPS,BA0000290591,450.00,
BIS,The Insolvency Service,19/10/2015,Postage,OFFICIAL RECEIVER SERVICES                                                                          ,NEOPOST LTD - FRANKING TOP UPS,BA0000290591,950.00,
BIS,The Insolvency Service,12/10/2015,Accommodation,OFFICIAL RECEIVER SERVICES                                                                          ,NORTHAMPTONSHIRE COUNTY COUNCIL,BA0000290444,301.00,
BIS,The Insolvency Service,06/10/2015,Computer and IT Systems,INFORMATION TECHNOLOGY                                                                              ,NORTHGATE INFORMATION SOLUTIONS                             ,BA0000290265,"5,646.44",207588545
BIS,The Insolvency Service,06/10/2015,Computer and IT Systems,INFORMATION TECHNOLOGY                                                                              ,NORTHGATE INFORMATION SOLUTIONS                             ,BA0000290266,"16,601.20",207588545
BIS,The Insolvency Service,19/10/2015,Computer and IT Systems,FINANCE AND COMMERCIAL                                                                              ,NORTHGATE INFORMATION SOLUTIONS                             ,BA0000290589,"7,910.40",207588545
BIS,The Insolvency Service,23/10/2015,Computer and IT Systems,PROJECTS                                                                                            ,NORTHGATE INFORMATION SOLUTIONS                             ,BA0000290639,-22.72,207588545
BIS,The Insolvency Service,23/10/2015,Computer and IT Systems,INFORMATION TECHNOLOGY                                                                              ,NORTHGATE INFORMATION SOLUTIONS                             ,BA0000290704,"84,705.73",207588545
BIS,The Insolvency Service,29/10/2015,Computer and IT Systems,INFORMATION TECHNOLOGY                                                                              ,NORTHGATE INFORMATION SOLUTIONS                             ,BA0000290879,"31,800.00",207588545
BIS,The Insolvency Service,29/10/2015,Computer and IT Systems,INFORMATION TECHNOLOGY                                                                              ,NORTHGATE INFORMATION SOLUTIONS                             ,BA0000290880,"5,646.44",207588545
BIS,The Insolvency Service,29/10/2015,Computer and IT Systems,INFORMATION TECHNOLOGY                                                                              ,NORTHGATE INFORMATION SOLUTIONS                             ,BA0000290895,"16,601.20",207588545
BIS,The Insolvency Service,29/10/2015,Computer and IT Systems,INFORMATION TECHNOLOGY                                                                              ,NORTHGATE INFORMATION SOLUTIONS                             ,BA0000290878,"2,284.20",207588545
BIS,The Insolvency Service,14/10/2015,Accommodation,OFFICIAL RECEIVER SERVICES                                                                          ,NORTHUMBRIAN WATER,BA0000290498,46.97,499980359
BIS,The Insolvency Service,29/10/2015,Training Costs,PEOPLE & CAPABILITY                                                                                 ,OFFICE FOR NATIONAL STATISTICS,BA0000290826,833.33,GD460
BIS,The Insolvency Service,01/10/2015,Travel and Subsistence,INVESTIGATIONS & ENFORCEMENT                                                                        ,OYSTER AUTO TOP UP,BA0000290523,30.00,
BIS,The Insolvency Service,01/10/2015,Travel and Subsistence,EXTERNAL AFFAIRS                                                                                    ,OYSTER AUTO TOP UP,BA0000290523,20.00,
BIS,The Insolvency Service,01/10/2015,Travel and Subsistence,OFFICIAL RECEIVER SERVICES                                                                          ,OYSTER AUTO TOP UP,BA0000290523,20.00,
BIS,The Insolvency Service,01/10/2015,Travel and Subsistence,EXTERNAL AFFAIRS                                                                                    ,OYSTER AUTO TOP UP,BA0000290523,20.00,
BIS,The Insolvency Service,01/10/2015,Travel and Subsistence,BUSINESS SERVICES DIRECTORATE                                                                       ,OYSTER AUTO TOP UP,BA0000290523,10.00,
BIS,The Insolvency Service,28/10/2015,Insolvency Case Related Costs,ESTATES,PARCELFORCE WORLDWIDE,BA0000290571,5.99,243170002
BIS,The Insolvency Service,28/10/2015,Insolvency Case Related Costs,OFFICIAL RECEIVER SERVICES                                                                          ,PARCELFORCE WORLDWIDE,BA0000290571,13.32,243170002
BIS,The Insolvency Service,28/10/2015,Insolvency Case Related Costs,OFFICIAL RECEIVER SERVICES                                                                          ,PARCELFORCE WORLDWIDE,BA0000290571,23.17,243170002
BIS,The Insolvency Service,28/10/2015,Insolvency Case Related Costs,OFFICIAL RECEIVER SERVICES                                                                          ,PARCELFORCE WORLDWIDE,BA0000290571,54.02,243170002
BIS,The Insolvency Service,28/10/2015,Insolvency Case Related Costs,OFFICIAL RECEIVER SERVICES                                                                          ,PARCELFORCE WORLDWIDE,BA0000290571,54.61,243170002
BIS,The Insolvency Service,01/10/2015,Travel and Subsistence,OFFICIAL RECEIVER SERVICES                                                                          ,PAYBYPHONE PARKING,BA0000290523,18.20,
BIS,The Insolvency Service,01/10/2015,Travel and Subsistence,OFFICIAL RECEIVER SERVICES                                                                          ,PAYBYPHONE PARKING,BA0000290523,6.20,
BIS,The Insolvency Service,01/10/2015,Travel and Subsistence,OFFICIAL RECEIVER SERVICES                                                                          ,PAYBYPHONE PARKING,BA0000290523,12.20,
BIS,The Insolvency Service,01/10/2015,Travel and Subsistence,PEOPLE & CAPABILITY                                                                                 ,PHONEANDPAY.CO.UK                                           ,BA0000290523,5.24,
BIS,The Insolvency Service,01/10/2015,Travel and Subsistence,PEOPLE & CAPABILITY                                                                                 ,PHONEANDPAY.CO.UK                                           ,BA0000290523,5.24,
BIS,The Insolvency Service,01/10/2015,Travel and Subsistence,PEOPLE & CAPABILITY                                                                                 ,PHONEANDPAY.CO.UK                                           ,BA0000290523,5.24,
BIS,The Insolvency Service,01/10/2015,Travel and Subsistence,PEOPLE & CAPABILITY                                                                                 ,PHONEANDPAY.CO.UK                                           ,BA0000290523,5.24,
BIS,The Insolvency Service,14/10/2015,Office Supplies and Services,CUSTOMER AND COMMUNICATIONS                                                                         ,PLAIN LANGUAGE COMMISSION,BA0000290495,480.00,527659413
BIS,The Insolvency Service,14/10/2015,Office Supplies and Services,CUSTOMER AND COMMUNICATIONS                                                                         ,PLAIN LANGUAGE COMMISSION,BA0000290496,360.00,527659413
BIS,The Insolvency Service,06/10/2015,Employee Related Costs,PEOPLE & CAPABILITY                                                                                 ,POSTURITE (UK) LTD.,BA0000290273,59.11,
BIS,The Insolvency Service,08/10/2015,Employee Related Costs,PEOPLE & CAPABILITY                                                                                 ,POSTURITE (UK) LTD.,BA0000290370,24.38,
BIS,The Insolvency Service,19/10/2015,Employee Related Costs,PEOPLE & CAPABILITY                                                                                 ,POSTURITE (UK) LTD.,BA0000290585,"1,678.92",
BIS,The Insolvency Service,22/10/2015,Employee Related Costs,PEOPLE & CAPABILITY                                                                                 ,POSTURITE (UK) LTD.,BA0000290687,45.00,
BIS,The Insolvency Service,05/10/2015,Accounting and Banking,FINANCE AND COMMERCIAL,PRICEWATERHOUSE COOPERS,BA0000290202,"42,500.00",243823957
BIS,The Insolvency Service,12/10/2015,Accommodation,PEOPLE & CAPABILITY                                                                                 ,PRINTED PAPER PRODUCTS LTD,BA0000290426,7.14,705161174
BIS,The Insolvency Service,12/10/2015,Accommodation,PEOPLE & CAPABILITY                                                                                 ,PRINTED PAPER PRODUCTS LTD,BA0000290426,71.76,705161174
BIS,The Insolvency Service,05/10/2015,Agency Workers,FINANCE AND COMMERCIAL                                                                              ,PSD CONTRACTS LTD                                           ,BA0000290258,"15,120.00",
BIS,The Insolvency Service,05/10/2015,Agency Workers,FINANCE AND COMMERCIAL                                                                              ,PSD CONTRACTS LTD                                           ,BA0000290259,"13,455.60",
BIS,The Insolvency Service,01/10/2015,Travel and Subsistence,BUSINESS SERVICES DIRECTORATE                                                                       ,Q PARK PIAZZA                                               ,BA0000290523,46.20,
BIS,The Insolvency Service,07/10/2015,Training Costs,PEOPLE & CAPABILITY                                                                                 ,QA LIMITED,BA0000290328,963.00,
BIS,The Insolvency Service,30/10/2015,Agency Workers,FINANCE AND COMMERCIAL                                                                              ,REDROCK CONSULTING LTD                                      ,BA0000290843,"2,280.00",
BIS,The Insolvency Service,12/10/2015,Employee Related Costs,PEOPLE & CAPABILITY                                                                                 ,RIGHT MANAGEMENT WORKPLACE WELLNESS                         ,BA0000290410,546.34,
BIS,The Insolvency Service,01/10/2015,Travel and Subsistence,OFFICIAL RECEIVER SERVICES                                                                          ,RINGOPARKBYPHONE                                            ,BA0000290523,4.70,
BIS,The Insolvency Service,01/10/2015,Travel and Subsistence,OFFICIAL RECEIVER SERVICES                                                                          ,RINGOPARKBYPHONE                                            ,BA0000290523,4.70,
BIS,The Insolvency Service,01/10/2015,Travel and Subsistence,OFFICIAL RECEIVER SERVICES                                                                          ,RINGOPARKBYPHONE                                            ,BA0000290523,4.70,
BIS,The Insolvency Service,01/10/2015,Travel and Subsistence,OFFICIAL RECEIVER SERVICES                                                                          ,RINGOPARKBYPHONE                                            ,BA0000290523,4.70,
BIS,The Insolvency Service,01/10/2015,Travel and Subsistence,OFFICIAL RECEIVER SERVICES                                                                          ,RINGOPARKBYPHONE                                            ,BA0000290523,4.70,
BIS,The Insolvency Service,01/10/2015,Travel and Subsistence,OFFICIAL RECEIVER SERVICES                                                                          ,RINGOPARKBYPHONE                                            ,BA0000290523,4.70,
BIS,The Insolvency Service,12/10/2015,Postage,OFFICIAL RECEIVER SERVICES                                                                          ,ROYAL MAIL,BA0000290433,160.00,
BIS,The Insolvency Service,01/10/2015,Postage,OFFICIAL RECEIVER SERVICES                                                                          ,ROYAL MAIL GROUP LTD,BA0000280650,6.60,243170002
BIS,The Insolvency Service,28/10/2015,Training Costs,PEOPLE & CAPABILITY                                                                                 ,RSS (SERVICES) LTD                                          ,BA0000290801,"1,570.00",
BIS,The Insolvency Service,05/10/2015,Accommodation,ESTATES,SCOTTISH POWER,BA0000290166,511.30,659372008
BIS,The Insolvency Service,29/10/2015,Accommodation,ESTATES,SCOTTISH POWER,BA0000290832,608.87,659372008
BIS,The Insolvency Service,12/10/2015,Accommodation,FINANCE AND COMMERCIAL                                                                              ,SENATOR INTERNATIONAL LTD,BA0000290448,"6,438.00",291146560
BIS,The Insolvency Service,28/10/2015,Agency Workers,OFFICIAL RECEIVER SERVICES                                                                          ,SHAW TRUST LTD,BA0000290747,"1,630.52",399017616
BIS,The Insolvency Service,28/10/2015,Agency Workers,OFFICIAL RECEIVER SERVICES                                                                          ,SHAW TRUST LTD,BA0000290748,"1,630.52",399017616
BIS,The Insolvency Service,29/10/2015,Agency Workers,OFFICIAL RECEIVER SERVICES                                                                          ,SHAW TRUST LTD,BA0000290830,881.23,399017616
BIS,The Insolvency Service,12/10/2015,Accommodation,ESTATES,SHEFFIELD CITY COUNCIL,BA0000290446,"1,052.00",
BIS,The Insolvency Service,20/10/2015,Investigation and Enforcement Costs,INVESTIGATIONS & ENFORCEMENT                                                                        ,SHEPHERD & WEDDERBURN WS (ENGLISH CASES)                    ,BA0000290628,"-13,270.78",890559386
BIS,The Insolvency Service,20/10/2015,Investigation and Enforcement Costs,INVESTIGATIONS & ENFORCEMENT                                                                        ,SHEPHERD & WEDDERBURN WS (ENGLISH CASES)                    ,BA0000290628,"18,498.70",890559386
BIS,The Insolvency Service,20/10/2015,Investigation and Enforcement Costs,INVESTIGATIONS & ENFORCEMENT                                                                        ,SHEPHERD & WEDDERBURN WS (ENGLISH CASES)                    ,BA0000290628,"34,283.29",890559386
BIS,The Insolvency Service,20/10/2015,Investigation and Enforcement Costs,INVESTIGATIONS & ENFORCEMENT                                                                        ,SHEPHERD & WEDDERBURN WS (ENGLISH CASES)                    ,BA0000290628,633.70,890559386
BIS,The Insolvency Service,20/10/2015,Investigation and Enforcement Costs,INVESTIGATIONS & ENFORCEMENT                                                                        ,SHEPHERD & WEDDERBURN WS (ENGLISH CASES)                    ,BA0000290628,"26,331.02",890559386
BIS,The Insolvency Service,20/10/2015,Investigation and Enforcement Costs,INVESTIGATIONS & ENFORCEMENT                                                                        ,SHEPHERD & WEDDERBURN WS (SCOTTISH CASES)                   ,BA0000290629,"-13,569.80",890559386
BIS,The Insolvency Service,20/10/2015,Investigation and Enforcement Costs,INVESTIGATIONS & ENFORCEMENT                                                                        ,SHEPHERD & WEDDERBURN WS (SCOTTISH CASES)                   ,BA0000290629,"35,218.05",890559386
BIS,The Insolvency Service,20/10/2015,Investigation and Enforcement Costs,INVESTIGATIONS & ENFORCEMENT                                                                        ,SHEPHERD & WEDDERBURN WS (SCOTTISH CASES)                   ,BA0000290629,"13,653.78",890559386
BIS,The Insolvency Service,20/10/2015,Investigation and Enforcement Costs,INVESTIGATIONS & ENFORCEMENT                                                                        ,SHEPHERD & WEDDERBURN WS (SCOTTISH CASES)                   ,BA0000290629,"2,325.75",890559386
BIS,The Insolvency Service,19/10/2015,Accommodation,OFFICIAL RECEIVER SERVICES                                                                          ,SHORROCK TRICHEM LTD,BA0000290586,"1,335.60",732829814
BIS,The Insolvency Service,30/10/2015,Insolvency Case Related Costs,OFFICIAL RECEIVER SERVICES                                                                          ,SIRS (EUROPE) LTD,BA0000290849,"6,350.00",990834974
BIS,The Insolvency Service,30/10/2015,Investigation and Enforcement Costs,INVESTIGATIONS & ENFORCEMENT                                                                        ,SIRS (EUROPE) LTD,BA0000290849,"2,475.00",990834974
BIS,The Insolvency Service,30/10/2015,Investigation and Enforcement Costs,OFFICIAL RECEIVER SERVICES                                                                          ,SIRS (EUROPE) LTD,BA0000290849,325.00,990834974
BIS,The Insolvency Service,01/10/2015,Computer and IT Systems,INFORMATION TECHNOLOGY                                                                              ,SIX DEGREES MANAGED HOSTING (CC) LIMITD                     ,BA0000290176,881.70,135526617
BIS,The Insolvency Service,01/10/2015,Computer and IT Systems,FINANCE AND COMMERCIAL                                                                              ,SKY                                                         ,BA0000290523,-20.50,
BIS,The Insolvency Service,01/10/2015,Computer and IT Systems,FINANCE AND COMMERCIAL                                                                              ,SKY                                                         ,BA0000290523,-20.50,
BIS,The Insolvency Service,01/10/2015,Computer and IT Systems,FINANCE AND COMMERCIAL                                                                              ,SKY                                                         ,BA0000290523,-20.50,
BIS,The Insolvency Service,12/10/2015,Computer and IT Systems,FINANCE AND COMMERCIAL                                                                              ,SKYSCAPE CLOUD SERVICES                                     ,BA0000290424,"2,132.44",122134958
BIS,The Insolvency Service,19/10/2015,Computer and IT Systems,FINANCE AND COMMERCIAL                                                                              ,SKYSCAPE CLOUD SERVICES                                     ,BA0000290590,"1,770.10",122134958
BIS,The Insolvency Service,06/10/2015,Computer and IT Systems,INFORMATION TECHNOLOGY                                                                              ,SPRING TECHNOLOGY STAFFING,BA0000290270,"3,082.99",
BIS,The Insolvency Service,12/10/2015,Computer and IT Systems,INFORMATION TECHNOLOGY                                                                              ,SPRING TECHNOLOGY STAFFING,BA0000290407,"3,082.99",
BIS,The Insolvency Service,13/10/2015,Computer and IT Systems,INFORMATION TECHNOLOGY                                                                              ,SPRING TECHNOLOGY STAFFING,BA0000290459,"3,033.26",
BIS,The Insolvency Service,20/10/2015,Computer and IT Systems,INFORMATION TECHNOLOGY                                                                              ,SPRING TECHNOLOGY STAFFING,BA0000290635,"3,082.99",
BIS,The Insolvency Service,23/10/2015,Computer and IT Systems,INFORMATION TECHNOLOGY                                                                              ,SPRING TECHNOLOGY STAFFING,BA0000290700,"2,983.54",
BIS,The Insolvency Service,28/10/2015,Computer and IT Systems,INFORMATION TECHNOLOGY                                                                              ,SPRING TECHNOLOGY STAFFING,BA0000290805,"3,182.44",
BIS,The Insolvency Service,28/10/2015,Training Costs,PEOPLE & CAPABILITY                                                                                 ,ST ALBAN'S CENTRE                                           ,BA0000290730,420.00,
BIS,The Insolvency Service,14/10/2015,Training Costs,PEOPLE & CAPABILITY                                                                                 ,ST JOHN AMBULANCE,BA0000290516,638.00,
BIS,The Insolvency Service,20/10/2015,Conferences,BUSINESS SERVICES DIRECTORATE                                                                       ,ST MATTHEWS WESTMINSTER                                     ,BA0000290638,908.34,736148330
BIS,The Insolvency Service,05/10/2015,Travel and Subsistence,CUSTOMER AND COMMUNICATIONS                                                                         ,Staff Payment,BA0000290197,12.50,
BIS,The Insolvency Service,05/10/2015,Travel and Subsistence,CUSTOMER AND COMMUNICATIONS                                                                         ,Staff Payment,BA0000290197,115.20,
BIS,The Insolvency Service,05/10/2015,Travel and Subsistence,CUSTOMER AND COMMUNICATIONS                                                                         ,Staff Payment,BA0000290197,20.00,
BIS,The Insolvency Service,05/10/2015,Accommodation,OFFICIAL RECEIVER SERVICES                                                                          ,Staff Payment,BA0000290199,130.00,
BIS,The Insolvency Service,05/10/2015,Travel and Subsistence,FINANCE AND COMMERCIAL                                                                              ,Staff Payment,BA0000290197,89.72,
BIS,The Insolvency Service,05/10/2015,Travel and Subsistence,FINANCE AND COMMERCIAL                                                                              ,Staff Payment,BA0000290197,9.60,
BIS,The Insolvency Service,05/10/2015,Travel and Subsistence,INVESTIGATIONS & ENFORCEMENT                                                                        ,Staff Payment,BA0000290199,9.60,
BIS,The Insolvency Service,05/10/2015,Travel and Subsistence,INVESTIGATIONS & ENFORCEMENT                                                                        ,Staff Payment,BA0000290197,38.80,
BIS,The Insolvency Service,05/10/2015,Travel and Subsistence,INVESTIGATIONS & ENFORCEMENT                                                                        ,Staff Payment,BA0000290197,5.80,
BIS,The Insolvency Service,05/10/2015,Travel and Subsistence,INVESTIGATIONS & ENFORCEMENT                                                                        ,Staff Payment,BA0000290197,22.80,
BIS,The Insolvency Service,05/10/2015,Travel and Subsistence,INVESTIGATIONS & ENFORCEMENT                                                                        ,Staff Payment,BA0000290197,9.70,
BIS,The Insolvency Service,05/10/2015,Travel and Subsistence,INVESTIGATIONS & ENFORCEMENT                                                                        ,Staff Payment,BA0000290199,21.40,
BIS,The Insolvency Service,05/10/2015,Travel and Subsistence,FINANCE AND COMMERCIAL                                                                              ,Staff Payment,BA0000290197,10.00,
BIS,The Insolvency Service,05/10/2015,Travel and Subsistence,FINANCE AND COMMERCIAL                                                                              ,Staff Payment,BA0000290197,15.30,
BIS,The Insolvency Service,05/10/2015,Travel and Subsistence,INVESTIGATIONS & ENFORCEMENT                                                                        ,Staff Payment,BA0000290199,5.50,
BIS,The Insolvency Service,05/10/2015,Travel and Subsistence,INVESTIGATIONS & ENFORCEMENT                                                                        ,Staff Payment,BA0000290199,143.55,
BIS,The Insolvency Service,05/10/2015,Travel and Subsistence,INVESTIGATIONS & ENFORCEMENT                                                                        ,Staff Payment,BA0000290197,8.50,
BIS,The Insolvency Service,05/10/2015,Travel and Subsistence,INVESTIGATIONS & ENFORCEMENT                                                                        ,Staff Payment,BA0000290197,38.25,
BIS,The Insolvency Service,05/10/2015,Travel and Subsistence,INVESTIGATIONS & ENFORCEMENT                                                                        ,Staff Payment,BA0000290197,38.60,
BIS,The Insolvency Service,05/10/2015,Travel and Subsistence,INVESTIGATIONS & ENFORCEMENT                                                                        ,Staff Payment,BA0000290197,53.20,
BIS,The Insolvency Service,05/10/2015,Travel and Subsistence,INVESTIGATIONS & ENFORCEMENT                                                                        ,Staff Payment,BA0000290199,50.40,
BIS,The Insolvency Service,05/10/2015,Travel and Subsistence,INVESTIGATIONS & ENFORCEMENT                                                                        ,Staff Payment,BA0000290199,11.00,
BIS,The Insolvency Service,05/10/2015,Travel and Subsistence,OFFICIAL RECEIVER SERVICES                                                                          ,Staff Payment,BA0000290200,4.15,
BIS,The Insolvency Service,05/10/2015,Travel and Subsistence,OFFICIAL RECEIVER SERVICES                                                                          ,Staff Payment,BA0000290200,4.20,
BIS,The Insolvency Service,05/10/2015,Travel and Subsistence,OFFICIAL RECEIVER SERVICES                                                                          ,Staff Payment,BA0000290200,8.00,
BIS,The Insolvency Service,05/10/2015,Travel and Subsistence,OFFICIAL RECEIVER SERVICES                                                                          ,Staff Payment,BA0000290200,38.25,
BIS,The Insolvency Service,05/10/2015,Travel and Subsistence,OFFICIAL RECEIVER SERVICES                                                                          ,Staff Payment,BA0000290200,38.70,
BIS,The Insolvency Service,05/10/2015,Travel and Subsistence,OFFICIAL RECEIVER SERVICES                                                                          ,Staff Payment,BA0000290197,3.60,
BIS,The Insolvency Service,05/10/2015,Travel and Subsistence,OFFICIAL RECEIVER SERVICES                                                                          ,Staff Payment,BA0000290197,3.00,
BIS,The Insolvency Service,05/10/2015,Travel and Subsistence,OFFICIAL RECEIVER SERVICES                                                                          ,Staff Payment,BA0000290197,4.50,
BIS,The Insolvency Service,05/10/2015,Travel and Subsistence,OFFICIAL RECEIVER SERVICES                                                                          ,Staff Payment,BA0000290197,1.20,
BIS,The Insolvency Service,05/10/2015,Travel and Subsistence,OFFICIAL RECEIVER SERVICES                                                                          ,Staff Payment,BA0000290197,4.50,
BIS,The Insolvency Service,05/10/2015,Travel and Subsistence,OFFICIAL RECEIVER SERVICES                                                                          ,Staff Payment,BA0000290197,1.60,
BIS,The Insolvency Service,05/10/2015,Travel and Subsistence,OFFICIAL RECEIVER SERVICES                                                                          ,Staff Payment,BA0000290197,36.00,
BIS,The Insolvency Service,05/10/2015,Travel and Subsistence,OFFICIAL RECEIVER SERVICES                                                                          ,Staff Payment,BA0000290199,7.20,
BIS,The Insolvency Service,05/10/2015,Travel and Subsistence,OFFICIAL RECEIVER SERVICES                                                                          ,Staff Payment,BA0000290199,12.50,
BIS,The Insolvency Service,05/10/2015,Travel and Subsistence,OFFICIAL RECEIVER SERVICES                                                                          ,Staff Payment,BA0000290197,1.10,
BIS,The Insolvency Service,05/10/2015,Travel and Subsistence,OFFICIAL RECEIVER SERVICES                                                                          ,Staff Payment,BA0000290197,12.15,
BIS,The Insolvency Service,05/10/2015,Travel and Subsistence,OFFICIAL RECEIVER SERVICES                                                                          ,Staff Payment,BA0000290197,14.00,
BIS,The Insolvency Service,05/10/2015,Travel and Subsistence,OFFICIAL RECEIVER SERVICES                                                                          ,Staff Payment,BA0000290197,37.80,
BIS,The Insolvency Service,05/10/2015,Travel and Subsistence,OFFICIAL RECEIVER SERVICES                                                                          ,Staff Payment,BA0000290197,40.53,
BIS,The Insolvency Service,05/10/2015,Travel and Subsistence,OFFICIAL RECEIVER SERVICES                                                                          ,Staff Payment,BA0000290197,8.55,
BIS,The Insolvency Service,05/10/2015,Travel and Subsistence,OFFICIAL RECEIVER SERVICES                                                                          ,Staff Payment,BA0000290197,2.40,
BIS,The Insolvency Service,05/10/2015,Travel and Subsistence,OFFICIAL RECEIVER SERVICES                                                                          ,Staff Payment,BA0000290197,13.05,
BIS,The Insolvency Service,05/10/2015,Travel and Subsistence,OFFICIAL RECEIVER SERVICES                                                                          ,Staff Payment,BA0000290197,1.50,
BIS,The Insolvency Service,05/10/2015,Travel and Subsistence,OFFICIAL RECEIVER SERVICES                                                                          ,Staff Payment,BA0000290197,13.05,
BIS,The Insolvency Service,05/10/2015,Travel and Subsistence,OFFICIAL RECEIVER SERVICES                                                                          ,Staff Payment,BA0000290197,3.60,
BIS,The Insolvency Service,05/10/2015,Travel and Subsistence,OFFICIAL RECEIVER SERVICES                                                                          ,Staff Payment,BA0000290197,35.10,
BIS,The Insolvency Service,05/10/2015,Travel and Subsistence,OFFICIAL RECEIVER SERVICES                                                                          ,Staff Payment,BA0000290197,3.00,
BIS,The Insolvency Service,05/10/2015,Travel and Subsistence,OFFICIAL RECEIVER SERVICES                                                                          ,Staff Payment,BA0000290199,46.80,
BIS,The Insolvency Service,05/10/2015,Travel and Subsistence,OFFICIAL RECEIVER SERVICES                                                                          ,Staff Payment,BA0000290199,36.00,
BIS,The Insolvency Service,05/10/2015,Travel and Subsistence,INVESTIGATIONS & ENFORCEMENT                                                                        ,Staff Payment,BA0000290197,5.80,
BIS,The Insolvency Service,05/10/2015,Travel and Subsistence,OFFICIAL RECEIVER SERVICES                                                                          ,Staff Payment,BA0000290197,29.00,
BIS,The Insolvency Service,05/10/2015,Travel and Subsistence,OFFICIAL RECEIVER SERVICES                                                                          ,Staff Payment,BA0000290197,6.50,
BIS,The Insolvency Service,05/10/2015,Travel and Subsistence,OFFICIAL RECEIVER SERVICES                                                                          ,Staff Payment,BA0000290197,25.60,
BIS,The Insolvency Service,05/10/2015,Travel and Subsistence,FINANCE AND COMMERCIAL                                                                              ,Staff Payment,BA0000290197,25.00,
BIS,The Insolvency Service,05/10/2015,Travel and Subsistence,FINANCE AND COMMERCIAL                                                                              ,Staff Payment,BA0000290197,4.90,
BIS,The Insolvency Service,05/10/2015,Travel and Subsistence,FINANCE AND COMMERCIAL                                                                              ,Staff Payment,BA0000290197,38.50,
BIS,The Insolvency Service,05/10/2015,Travel and Subsistence,FINANCE AND COMMERCIAL                                                                              ,Staff Payment,BA0000290197,10.00,
BIS,The Insolvency Service,05/10/2015,Travel and Subsistence,FINANCE AND COMMERCIAL                                                                              ,Staff Payment,BA0000290197,9.96,
BIS,The Insolvency Service,05/10/2015,Travel and Subsistence,INVESTIGATIONS & ENFORCEMENT                                                                        ,Staff Payment,BA0000290199,8.68,
BIS,The Insolvency Service,05/10/2015,Travel and Subsistence,INVESTIGATIONS & ENFORCEMENT                                                                        ,Staff Payment,BA0000290197,20.00,
BIS,The Insolvency Service,05/10/2015,Travel and Subsistence,INVESTIGATIONS & ENFORCEMENT                                                                        ,Staff Payment,BA0000290197,42.24,
BIS,The Insolvency Service,05/10/2015,Travel and Subsistence,INVESTIGATIONS & ENFORCEMENT                                                                        ,Staff Payment,BA0000290197,8.40,
BIS,The Insolvency Service,05/10/2015,Travel and Subsistence,INVESTIGATIONS & ENFORCEMENT                                                                        ,Staff Payment,BA0000290197,5.00,
BIS,The Insolvency Service,05/10/2015,Travel and Subsistence,INVESTIGATIONS & ENFORCEMENT                                                                        ,Staff Payment,BA0000290197,5.00,
BIS,The Insolvency Service,05/10/2015,Travel and Subsistence,INVESTIGATIONS & ENFORCEMENT                                                                        ,Staff Payment,BA0000290197,5.00,
BIS,The Insolvency Service,05/10/2015,Travel and Subsistence,INVESTIGATIONS & ENFORCEMENT                                                                        ,Staff Payment,BA0000290199,5.00,
BIS,The Insolvency Service,05/10/2015,Travel and Subsistence,OFFICIAL RECEIVER SERVICES                                                                          ,Staff Payment,BA0000290200,5.00,
BIS,The Insolvency Service,05/10/2015,Travel and Subsistence,OFFICIAL RECEIVER SERVICES                                                                          ,Staff Payment,BA0000290197,40.00,
BIS,The Insolvency Service,05/10/2015,Travel and Subsistence,OFFICIAL RECEIVER SERVICES                                                                          ,Staff Payment,BA0000290199,4.80,
BIS,The Insolvency Service,05/10/2015,Travel and Subsistence,OFFICIAL RECEIVER SERVICES                                                                          ,Staff Payment,BA0000290197,3.00,
BIS,The Insolvency Service,05/10/2015,Travel and Subsistence,OFFICIAL RECEIVER SERVICES                                                                          ,Staff Payment,BA0000290199,4.95,
BIS,The Insolvency Service,06/10/2015,Travel and Subsistence,OFFICIAL RECEIVER SERVICES                                                                          ,Staff Payment,BA0000290306,95.40,
BIS,The Insolvency Service,06/10/2015,Travel and Subsistence,OFFICIAL RECEIVER SERVICES                                                                          ,Staff Payment,BA0000290306,95.40,
BIS,The Insolvency Service,06/10/2015,Travel and Subsistence,OFFICIAL RECEIVER SERVICES                                                                          ,Staff Payment,BA0000290306,95.40,
BIS,The Insolvency Service,06/10/2015,Travel and Subsistence,OFFICIAL RECEIVER SERVICES                                                                          ,Staff Payment,BA0000290306,24.25,
BIS,The Insolvency Service,06/10/2015,Travel and Subsistence,BUSINESS SERVICES DIRECTORATE                                                                       ,Staff Payment,BA0000290306,17.00,
BIS,The Insolvency Service,06/10/2015,Travel and Subsistence,BUSINESS SERVICES DIRECTORATE                                                                       ,Staff Payment,BA0000290306,6.00,
BIS,The Insolvency Service,06/10/2015,Travel and Subsistence,INVESTIGATIONS & ENFORCEMENT                                                                        ,Staff Payment,BA0000290306,54.90,
BIS,The Insolvency Service,06/10/2015,Travel and Subsistence,INVESTIGATIONS & ENFORCEMENT                                                                        ,Staff Payment,BA0000290306,12.00,
BIS,The Insolvency Service,06/10/2015,Travel and Subsistence,INVESTIGATIONS & ENFORCEMENT                                                                        ,Staff Payment,BA0000290306,10.90,
BIS,The Insolvency Service,06/10/2015,Travel and Subsistence,OFFICIAL RECEIVER SERVICES                                                                          ,Staff Payment,BA0000290306,6.10,
BIS,The Insolvency Service,06/10/2015,Travel and Subsistence,OFFICIAL RECEIVER SERVICES                                                                          ,Staff Payment,BA0000290306,3.05,
BIS,The Insolvency Service,06/10/2015,Travel and Subsistence,OFFICIAL RECEIVER SERVICES                                                                          ,Staff Payment,BA0000290306,21.30,
BIS,The Insolvency Service,06/10/2015,Travel and Subsistence,OFFICIAL RECEIVER SERVICES                                                                          ,Staff Payment,BA0000290306,124.40,
BIS,The Insolvency Service,06/10/2015,Travel and Subsistence,OFFICIAL RECEIVER SERVICES                                                                          ,Staff Payment,BA0000290306,11.80,
BIS,The Insolvency Service,06/10/2015,Travel and Subsistence,OFFICIAL RECEIVER SERVICES                                                                          ,Staff Payment,BA0000290306,48.50,
BIS,The Insolvency Service,06/10/2015,Travel and Subsistence,OFFICIAL RECEIVER SERVICES                                                                          ,Staff Payment,BA0000290306,9.60,
BIS,The Insolvency Service,06/10/2015,Travel and Subsistence,OFFICIAL RECEIVER SERVICES                                                                          ,Staff Payment,BA0000290306,29.00,
BIS,The Insolvency Service,06/10/2015,Travel and Subsistence,BUSINESS SERVICES DIRECTORATE                                                                       ,Staff Payment,BA0000290306,19.99,
BIS,The Insolvency Service,06/10/2015,Travel and Subsistence,BUSINESS SERVICES DIRECTORATE                                                                       ,Staff Payment,BA0000290306,8.00,
BIS,The Insolvency Service,06/10/2015,Travel and Subsistence,INVESTIGATIONS & ENFORCEMENT                                                                        ,Staff Payment,BA0000290306,8.50,
BIS,The Insolvency Service,06/10/2015,Travel and Subsistence,INVESTIGATIONS & ENFORCEMENT                                                                        ,Staff Payment,BA0000290306,31.00,
BIS,The Insolvency Service,06/10/2015,Travel and Subsistence,INVESTIGATIONS & ENFORCEMENT                                                                        ,Staff Payment,BA0000290306,14.30,
BIS,The Insolvency Service,06/10/2015,Travel and Subsistence,INVESTIGATIONS & ENFORCEMENT                                                                        ,Staff Payment,BA0000290306,75.60,
BIS,The Insolvency Service,06/10/2015,Travel and Subsistence,INVESTIGATIONS & ENFORCEMENT                                                                        ,Staff Payment,BA0000290306,123.30,
BIS,The Insolvency Service,06/10/2015,Travel and Subsistence,INVESTIGATIONS & ENFORCEMENT                                                                        ,Staff Payment,BA0000290306,8.50,
BIS,The Insolvency Service,06/10/2015,Travel and Subsistence,INVESTIGATIONS & ENFORCEMENT                                                                        ,Staff Payment,BA0000290306,34.25,
BIS,The Insolvency Service,06/10/2015,Travel and Subsistence,OFFICIAL RECEIVER SERVICES                                                                          ,Staff Payment,BA0000290306,1.00,
BIS,The Insolvency Service,06/10/2015,Travel and Subsistence,OFFICIAL RECEIVER SERVICES                                                                          ,Staff Payment,BA0000290306,27.90,
BIS,The Insolvency Service,06/10/2015,Travel and Subsistence,OFFICIAL RECEIVER SERVICES                                                                          ,Staff Payment,BA0000290306,6.75,
BIS,The Insolvency Service,06/10/2015,Travel and Subsistence,OFFICIAL RECEIVER SERVICES                                                                          ,Staff Payment,BA0000290306,0.50,
BIS,The Insolvency Service,06/10/2015,Travel and Subsistence,OFFICIAL RECEIVER SERVICES                                                                          ,Staff Payment,BA0000290306,3.00,
BIS,The Insolvency Service,06/10/2015,Travel and Subsistence,OFFICIAL RECEIVER SERVICES                                                                          ,Staff Payment,BA0000290306,44.80,
BIS,The Insolvency Service,06/10/2015,Travel and Subsistence,OFFICIAL RECEIVER SERVICES                                                                          ,Staff Payment,BA0000290306,2.30,
BIS,The Insolvency Service,06/10/2015,Travel and Subsistence,OFFICIAL RECEIVER SERVICES                                                                          ,Staff Payment,BA0000290306,46.50,
BIS,The Insolvency Service,06/10/2015,Travel and Subsistence,OFFICIAL RECEIVER SERVICES                                                                          ,Staff Payment,BA0000290306,49.50,
BIS,The Insolvency Service,06/10/2015,Travel and Subsistence,OFFICIAL RECEIVER SERVICES                                                                          ,Staff Payment,BA0000290306,1.20,
BIS,The Insolvency Service,06/10/2015,Travel and Subsistence,OFFICIAL RECEIVER SERVICES                                                                          ,Staff Payment,BA0000290306,26.55,
BIS,The Insolvency Service,06/10/2015,Travel and Subsistence,OFFICIAL RECEIVER SERVICES                                                                          ,Staff Payment,BA0000290306,58.50,
BIS,The Insolvency Service,06/10/2015,Travel and Subsistence,OFFICIAL RECEIVER SERVICES                                                                          ,Staff Payment,BA0000290306,11.00,
BIS,The Insolvency Service,06/10/2015,Travel and Subsistence,OFFICIAL RECEIVER SERVICES                                                                          ,Staff Payment,BA0000290306,11.70,
BIS,The Insolvency Service,06/10/2015,Travel and Subsistence,OFFICIAL RECEIVER SERVICES                                                                          ,Staff Payment,BA0000290306,37.80,
BIS,The Insolvency Service,06/10/2015,Travel and Subsistence,OFFICIAL RECEIVER SERVICES                                                                          ,Staff Payment,BA0000290306,6.00,
BIS,The Insolvency Service,06/10/2015,Travel and Subsistence,OFFICIAL RECEIVER SERVICES                                                                          ,Staff Payment,BA0000290306,26.00,
BIS,The Insolvency Service,06/10/2015,Travel and Subsistence,OFFICIAL RECEIVER SERVICES                                                                          ,Staff Payment,BA0000290306,21.53,
BIS,The Insolvency Service,06/10/2015,Travel and Subsistence,OFFICIAL RECEIVER SERVICES                                                                          ,Staff Payment,BA0000290306,36.00,
BIS,The Insolvency Service,06/10/2015,Travel and Subsistence,OFFICIAL RECEIVER SERVICES                                                                          ,Staff Payment,BA0000290306,1.50,
BIS,The Insolvency Service,06/10/2015,Travel and Subsistence,OFFICIAL RECEIVER SERVICES                                                                          ,Staff Payment,BA0000290306,18.00,
BIS,The Insolvency Service,06/10/2015,Travel and Subsistence,OFFICIAL RECEIVER SERVICES                                                                          ,Staff Payment,BA0000290306,17.80,
BIS,The Insolvency Service,06/10/2015,Travel and Subsistence,OFFICIAL RECEIVER SERVICES                                                                          ,Staff Payment,BA0000290306,3.40,
BIS,The Insolvency Service,06/10/2015,Travel and Subsistence,OFFICIAL RECEIVER SERVICES                                                                          ,Staff Payment,BA0000290306,57.00,
BIS,The Insolvency Service,06/10/2015,Travel and Subsistence,PEOPLE & CAPABILITY                                                                                 ,Staff Payment,BA0000290306,10.35,
BIS,The Insolvency Service,06/10/2015,Travel and Subsistence,PEOPLE & CAPABILITY                                                                                 ,Staff Payment,BA0000290306,14.40,
BIS,The Insolvency Service,06/10/2015,Travel and Subsistence,PEOPLE & CAPABILITY                                                                                 ,Staff Payment,BA0000290306,20.00,
BIS,The Insolvency Service,06/10/2015,Travel and Subsistence,PEOPLE & CAPABILITY                                                                                 ,Staff Payment,BA0000290306,18.00,
BIS,The Insolvency Service,06/10/2015,Travel and Subsistence,FINANCE AND COMMERCIAL                                                                              ,Staff Payment,BA0000290306,3.40,
BIS,The Insolvency Service,06/10/2015,Travel and Subsistence,FINANCE AND COMMERCIAL                                                                              ,Staff Payment,BA0000290306,40.00,
BIS,The Insolvency Service,06/10/2015,Travel and Subsistence,INVESTIGATIONS & ENFORCEMENT                                                                        ,Staff Payment,BA0000290306,19.00,
BIS,The Insolvency Service,06/10/2015,Travel and Subsistence,INVESTIGATIONS & ENFORCEMENT                                                                        ,Staff Payment,BA0000290306,5.00,
BIS,The Insolvency Service,06/10/2015,Travel and Subsistence,BUSINESS SERVICES DIRECTORATE                                                                       ,Staff Payment,BA0000290306,7.15,
BIS,The Insolvency Service,06/10/2015,Travel and Subsistence,BUSINESS SERVICES DIRECTORATE                                                                       ,Staff Payment,BA0000290306,5.00,
BIS,The Insolvency Service,06/10/2015,Travel and Subsistence,BUSINESS SERVICES DIRECTORATE                                                                       ,Staff Payment,BA0000290306,30.00,
BIS,The Insolvency Service,06/10/2015,Travel and Subsistence,BUSINESS SERVICES DIRECTORATE                                                                       ,Staff Payment,BA0000290306,44.11,
BIS,The Insolvency Service,06/10/2015,Travel and Subsistence,BUSINESS SERVICES DIRECTORATE                                                                       ,Staff Payment,BA0000290306,8.25,
BIS,The Insolvency Service,06/10/2015,Travel and Subsistence,BUSINESS SERVICES DIRECTORATE                                                                       ,Staff Payment,BA0000290306,10.00,
BIS,The Insolvency Service,06/10/2015,Travel and Subsistence,FINANCE AND COMMERCIAL                                                                              ,Staff Payment,BA0000290306,21.95,
BIS,The Insolvency Service,06/10/2015,Travel and Subsistence,FINANCE AND COMMERCIAL                                                                              ,Staff Payment,BA0000290306,22.05,
BIS,The Insolvency Service,06/10/2015,Travel and Subsistence,FINANCE AND COMMERCIAL                                                                              ,Staff Payment,BA0000290306,23.60,
BIS,The Insolvency Service,06/10/2015,Travel and Subsistence,FINANCE AND COMMERCIAL                                                                              ,Staff Payment,BA0000290306,20.00,
BIS,The Insolvency Service,06/10/2015,Travel and Subsistence,FINANCE AND COMMERCIAL                                                                              ,Staff Payment,BA0000290306,4.65,
BIS,The Insolvency Service,06/10/2015,Travel and Subsistence,FINANCE AND COMMERCIAL                                                                              ,Staff Payment,BA0000290306,52.30,
BIS,The Insolvency Service,06/10/2015,Travel and Subsistence,INVESTIGATIONS & ENFORCEMENT                                                                        ,Staff Payment,BA0000290306,5.00,
BIS,The Insolvency Service,06/10/2015,Travel and Subsistence,INVESTIGATIONS & ENFORCEMENT                                                                        ,Staff Payment,BA0000290306,8.73,
BIS,The Insolvency Service,06/10/2015,Travel and Subsistence,INVESTIGATIONS & ENFORCEMENT                                                                        ,Staff Payment,BA0000290306,23.55,
BIS,The Insolvency Service,06/10/2015,Travel and Subsistence,INVESTIGATIONS & ENFORCEMENT                                                                        ,Staff Payment,BA0000290306,10.00,
BIS,The Insolvency Service,06/10/2015,Travel and Subsistence,INVESTIGATIONS & ENFORCEMENT                                                                        ,Staff Payment,BA0000290306,5.00,
BIS,The Insolvency Service,06/10/2015,Travel and Subsistence,INVESTIGATIONS & ENFORCEMENT                                                                        ,Staff Payment,BA0000290306,3.00,
BIS,The Insolvency Service,06/10/2015,Travel and Subsistence,INVESTIGATIONS & ENFORCEMENT                                                                        ,Staff Payment,BA0000290306,7.60,
BIS,The Insolvency Service,06/10/2015,Travel and Subsistence,INVESTIGATIONS & ENFORCEMENT                                                                        ,Staff Payment,BA0000290306,5.00,
BIS,The Insolvency Service,06/10/2015,Travel and Subsistence,INVESTIGATIONS & ENFORCEMENT                                                                        ,Staff Payment,BA0000290306,5.00,
BIS,The Insolvency Service,06/10/2015,Travel and Subsistence,INVESTIGATIONS & ENFORCEMENT                                                                        ,Staff Payment,BA0000290306,5.00,
BIS,The Insolvency Service,06/10/2015,Travel and Subsistence,INVESTIGATIONS & ENFORCEMENT                                                                        ,Staff Payment,BA0000290306,5.00,
BIS,The Insolvency Service,06/10/2015,Travel and Subsistence,OFFICIAL RECEIVER SERVICES                                                                          ,Staff Payment,BA0000290306,3.78,
BIS,The Insolvency Service,06/10/2015,Travel and Subsistence,OFFICIAL RECEIVER SERVICES                                                                          ,Staff Payment,BA0000290306,73.67,
BIS,The Insolvency Service,06/10/2015,Travel and Subsistence,OFFICIAL RECEIVER SERVICES                                                                          ,Staff Payment,BA0000290306,4.20,
BIS,The Insolvency Service,06/10/2015,Travel and Subsistence,OFFICIAL RECEIVER SERVICES                                                                          ,Staff Payment,BA0000290306,9.96,
BIS,The Insolvency Service,06/10/2015,Travel and Subsistence,OFFICIAL RECEIVER SERVICES                                                                          ,Staff Payment,BA0000290306,5.00,
BIS,The Insolvency Service,06/10/2015,Travel and Subsistence,OFFICIAL RECEIVER SERVICES                                                                          ,Staff Payment,BA0000290306,14.68,
BIS,The Insolvency Service,06/10/2015,Travel and Subsistence,OFFICIAL RECEIVER SERVICES                                                                          ,Staff Payment,BA0000290306,4.70,
BIS,The Insolvency Service,06/10/2015,Travel and Subsistence,OFFICIAL RECEIVER SERVICES                                                                          ,Staff Payment,BA0000290306,12.75,
BIS,The Insolvency Service,06/10/2015,Travel and Subsistence,OFFICIAL RECEIVER SERVICES                                                                          ,Staff Payment,BA0000290306,3.85,
BIS,The Insolvency Service,06/10/2015,Travel and Subsistence,OFFICIAL RECEIVER SERVICES                                                                          ,Staff Payment,BA0000290306,26.80,
BIS,The Insolvency Service,06/10/2015,Travel and Subsistence,OFFICIAL RECEIVER SERVICES                                                                          ,Staff Payment,BA0000290306,3.00,
BIS,The Insolvency Service,06/10/2015,Travel and Subsistence,PEOPLE & CAPABILITY                                                                                 ,Staff Payment,BA0000290306,6.75,
BIS,The Insolvency Service,06/10/2015,Travel and Subsistence,PEOPLE & CAPABILITY                                                                                 ,Staff Payment,BA0000290306,34.95,
BIS,The Insolvency Service,06/10/2015,Travel and Subsistence,PEOPLE & CAPABILITY                                                                                 ,Staff Payment,BA0000290306,35.00,
BIS,The Insolvency Service,06/10/2015,Insolvency Case Related Costs,INVESTIGATIONS & ENFORCEMENT                                                                        ,Staff Payment,BA0000290306,24.00,
BIS,The Insolvency Service,06/10/2015,Insolvency Case Related Costs,INVESTIGATIONS & ENFORCEMENT                                                                        ,Staff Payment,BA0000290306,7.00,
BIS,The Insolvency Service,06/10/2015,Employee Related Costs,OFFICIAL RECEIVER SERVICES                                                                          ,Staff Payment,BA0000290306,2.20,
BIS,The Insolvency Service,07/10/2015,Travel and Subsistence,BUSINESS SERVICES DIRECTORATE                                                                       ,Staff Payment,BA0000290344,105.68,
BIS,The Insolvency Service,07/10/2015,Travel and Subsistence,PEOPLE & CAPABILITY                                                                                 ,Staff Payment,BA0000290344,7.10,
BIS,The Insolvency Service,07/10/2015,Telecoms,INVESTIGATIONS & ENFORCEMENT                                                                        ,Staff Payment,BA0000290344,186.41,
BIS,The Insolvency Service,07/10/2015,Travel and Subsistence,ESTATES,Staff Payment,BA0000290344,124.50,
BIS,The Insolvency Service,07/10/2015,Travel and Subsistence,ESTATES,Staff Payment,BA0000290344,4.50,
BIS,The Insolvency Service,07/10/2015,Travel and Subsistence,INVESTIGATIONS & ENFORCEMENT                                                                        ,Staff Payment,BA0000290344,42.60,
BIS,The Insolvency Service,07/10/2015,Travel and Subsistence,INVESTIGATIONS & ENFORCEMENT                                                                        ,Staff Payment,BA0000290344,4.60,
BIS,The Insolvency Service,07/10/2015,Travel and Subsistence,OFFICIAL RECEIVER SERVICES                                                                          ,Staff Payment,BA0000290344,3.00,
BIS,The Insolvency Service,07/10/2015,Travel and Subsistence,INVESTIGATIONS & ENFORCEMENT                                                                        ,Staff Payment,BA0000290344,42.70,
BIS,The Insolvency Service,07/10/2015,Travel and Subsistence,INVESTIGATIONS & ENFORCEMENT                                                                        ,Staff Payment,BA0000290344,14.00,
BIS,The Insolvency Service,07/10/2015,Travel and Subsistence,INVESTIGATIONS & ENFORCEMENT                                                                        ,Staff Payment,BA0000290344,7.50,
BIS,The Insolvency Service,07/10/2015,Travel and Subsistence,INVESTIGATIONS & ENFORCEMENT                                                                        ,Staff Payment,BA0000290344,10.00,
BIS,The Insolvency Service,07/10/2015,Travel and Subsistence,OFFICIAL RECEIVER SERVICES                                                                          ,Staff Payment,BA0000290344,3.00,
BIS,The Insolvency Service,07/10/2015,Travel and Subsistence,OFFICIAL RECEIVER SERVICES                                                                          ,Staff Payment,BA0000290344,10.80,
BIS,The Insolvency Service,07/10/2015,Travel and Subsistence,OFFICIAL RECEIVER SERVICES                                                                          ,Staff Payment,BA0000290344,3.00,
BIS,The Insolvency Service,07/10/2015,Travel and Subsistence,OFFICIAL RECEIVER SERVICES                                                                          ,Staff Payment,BA0000290344,27.00,
BIS,The Insolvency Service,07/10/2015,Travel and Subsistence,OFFICIAL RECEIVER SERVICES                                                                          ,Staff Payment,BA0000290344,40.50,
BIS,The Insolvency Service,07/10/2015,Travel and Subsistence,OFFICIAL RECEIVER SERVICES                                                                          ,Staff Payment,BA0000290344,59.30,
BIS,The Insolvency Service,07/10/2015,Travel and Subsistence,BUSINESS SERVICES DIRECTORATE                                                                       ,Staff Payment,BA0000290344,17.00,
BIS,The Insolvency Service,07/10/2015,Travel and Subsistence,INVESTIGATIONS & ENFORCEMENT                                                                        ,Staff Payment,BA0000290344,18.00,
BIS,The Insolvency Service,07/10/2015,Travel and Subsistence,OFFICIAL RECEIVER SERVICES                                                                          ,Staff Payment,BA0000290344,18.00,
BIS,The Insolvency Service,07/10/2015,Travel and Subsistence,OFFICIAL RECEIVER SERVICES                                                                          ,Staff Payment,BA0000290344,8.00,
BIS,The Insolvency Service,07/10/2015,Travel and Subsistence,BUSINESS SERVICES DIRECTORATE                                                                       ,Staff Payment,BA0000290344,59.90,
BIS,The Insolvency Service,07/10/2015,Travel and Subsistence,ESTATES,Staff Payment,BA0000290344,40.07,
BIS,The Insolvency Service,07/10/2015,Travel and Subsistence,INVESTIGATIONS & ENFORCEMENT                                                                        ,Staff Payment,BA0000290344,24.43,
BIS,The Insolvency Service,07/10/2015,Travel and Subsistence,INVESTIGATIONS & ENFORCEMENT                                                                        ,Staff Payment,BA0000290344,4.74,
BIS,The Insolvency Service,07/10/2015,Travel and Subsistence,INVESTIGATIONS & ENFORCEMENT                                                                        ,Staff Payment,BA0000290344,13.30,
BIS,The Insolvency Service,07/10/2015,Travel and Subsistence,INVESTIGATIONS & ENFORCEMENT                                                                        ,Staff Payment,BA0000290344,10.00,
BIS,The Insolvency Service,07/10/2015,Travel and Subsistence,OFFICIAL RECEIVER SERVICES                                                                          ,Staff Payment,BA0000290344,9.49,
BIS,The Insolvency Service,07/10/2015,Travel and Subsistence,OFFICIAL RECEIVER SERVICES                                                                          ,Staff Payment,BA0000290344,3.26,
BIS,The Insolvency Service,07/10/2015,Travel and Subsistence,OFFICIAL RECEIVER SERVICES                                                                          ,Staff Payment,BA0000290344,8.50,
BIS,The Insolvency Service,07/10/2015,Travel and Subsistence,OFFICIAL RECEIVER SERVICES                                                                          ,Staff Payment,BA0000290344,5.00,
BIS,The Insolvency Service,07/10/2015,Travel and Subsistence,OFFICIAL RECEIVER SERVICES                                                                          ,Staff Payment,BA0000290344,48.49,
BIS,The Insolvency Service,07/10/2015,Office Supplies and Services,INVESTIGATIONS & ENFORCEMENT                                                                        ,Staff Payment,BA0000290344,8.25,
BIS,The Insolvency Service,07/10/2015,Office Supplies and Services,INVESTIGATIONS & ENFORCEMENT                                                                        ,Staff Payment,BA0000290344,5.00,
BIS,The Insolvency Service,09/10/2015,Travel and Subsistence,INVESTIGATIONS & ENFORCEMENT                                                                        ,Staff Payment,BA0000290390,9.20,
BIS,The Insolvency Service,09/10/2015,Travel and Subsistence,INVESTIGATIONS & ENFORCEMENT                                                                        ,Staff Payment,BA0000290390,52.55,
BIS,The Insolvency Service,09/10/2015,Travel and Subsistence,INVESTIGATIONS & ENFORCEMENT                                                                        ,Staff Payment,BA0000290390,5.10,
BIS,The Insolvency Service,09/10/2015,Travel and Subsistence,OFFICIAL RECEIVER SERVICES                                                                          ,Staff Payment,BA0000290390,8.60,
BIS,The Insolvency Service,09/10/2015,Travel and Subsistence,INVESTIGATIONS & ENFORCEMENT                                                                        ,Staff Payment,BA0000290390,47.70,
BIS,The Insolvency Service,09/10/2015,Travel and Subsistence,INVESTIGATIONS & ENFORCEMENT                                                                        ,Staff Payment,BA0000290390,5.30,
BIS,The Insolvency Service,09/10/2015,Travel and Subsistence,OFFICIAL RECEIVER SERVICES                                                                          ,Staff Payment,BA0000290390,38.25,
BIS,The Insolvency Service,09/10/2015,Travel and Subsistence,OFFICIAL RECEIVER SERVICES                                                                          ,Staff Payment,BA0000290390,25.20,
BIS,The Insolvency Service,09/10/2015,Travel and Subsistence,OFFICIAL RECEIVER SERVICES                                                                          ,Staff Payment,BA0000290390,5.00,
BIS,The Insolvency Service,09/10/2015,Travel and Subsistence,OFFICIAL RECEIVER SERVICES                                                                          ,Staff Payment,BA0000290390,27.90,
BIS,The Insolvency Service,09/10/2015,Travel and Subsistence,OFFICIAL RECEIVER SERVICES                                                                          ,Staff Payment,BA0000290390,51.70,
BIS,The Insolvency Service,09/10/2015,Travel and Subsistence,OFFICIAL RECEIVER SERVICES                                                                          ,Staff Payment,BA0000290390,3.10,
BIS,The Insolvency Service,09/10/2015,Travel and Subsistence,OFFICIAL RECEIVER SERVICES                                                                          ,Staff Payment,BA0000290390,16.20,
BIS,The Insolvency Service,09/10/2015,Travel and Subsistence,OFFICIAL RECEIVER SERVICES                                                                          ,Staff Payment,BA0000290390,8.00,
BIS,The Insolvency Service,09/10/2015,Travel and Subsistence,OFFICIAL RECEIVER SERVICES                                                                          ,Staff Payment,BA0000290390,49.50,
BIS,The Insolvency Service,09/10/2015,Travel and Subsistence,OFFICIAL RECEIVER SERVICES                                                                          ,Staff Payment,BA0000290390,25.00,
BIS,The Insolvency Service,09/10/2015,Travel and Subsistence,PEOPLE & CAPABILITY                                                                                 ,Staff Payment,BA0000290390,25.65,
BIS,The Insolvency Service,09/10/2015,Travel and Subsistence,INVESTIGATIONS & ENFORCEMENT                                                                        ,Staff Payment,BA0000290390,14.00,
BIS,The Insolvency Service,09/10/2015,Travel and Subsistence,OFFICIAL RECEIVER SERVICES                                                                          ,Staff Payment,BA0000290390,4.10,
BIS,The Insolvency Service,09/10/2015,Travel and Subsistence,BUSINESS SERVICES DIRECTORATE                                                                       ,Staff Payment,BA0000290390,26.75,
BIS,The Insolvency Service,09/10/2015,Travel and Subsistence,BUSINESS SERVICES DIRECTORATE                                                                       ,Staff Payment,BA0000290390,27.72,
BIS,The Insolvency Service,09/10/2015,Travel and Subsistence,FINANCE AND COMMERCIAL                                                                              ,Staff Payment,BA0000290391,4.50,
BIS,The Insolvency Service,09/10/2015,Travel and Subsistence,FINANCE AND COMMERCIAL                                                                              ,Staff Payment,BA0000290391,4.54,
BIS,The Insolvency Service,09/10/2015,Travel and Subsistence,INVESTIGATIONS & ENFORCEMENT                                                                        ,Staff Payment,BA0000290390,10.00,
BIS,The Insolvency Service,09/10/2015,Travel and Subsistence,INVESTIGATIONS & ENFORCEMENT                                                                        ,Staff Payment,BA0000290390,5.00,
BIS,The Insolvency Service,09/10/2015,Travel and Subsistence,INVESTIGATIONS & ENFORCEMENT                                                                        ,Staff Payment,BA0000290390,4.50,
BIS,The Insolvency Service,09/10/2015,Travel and Subsistence,OFFICIAL RECEIVER SERVICES                                                                          ,Staff Payment,BA0000290390,53.40,
BIS,The Insolvency Service,09/10/2015,Travel and Subsistence,OFFICIAL RECEIVER SERVICES                                                                          ,Staff Payment,BA0000290390,64.34,
BIS,The Insolvency Service,09/10/2015,Travel and Subsistence,OFFICIAL RECEIVER SERVICES                                                                          ,Staff Payment,BA0000290390,57.67,
BIS,The Insolvency Service,09/10/2015,Travel and Subsistence,OFFICIAL RECEIVER SERVICES                                                                          ,Staff Payment,BA0000290390,45.75,
BIS,The Insolvency Service,09/10/2015,Insolvency Case Related Costs,INVESTIGATIONS & ENFORCEMENT                                                                        ,Staff Payment,BA0000290390,14.00,
BIS,The Insolvency Service,09/10/2015,Insolvency Case Related Costs,INVESTIGATIONS & ENFORCEMENT                                                                        ,Staff Payment,BA0000290390,7.00,
BIS,The Insolvency Service,09/10/2015,Employee Related Costs,PEOPLE & CAPABILITY                                                                                 ,Staff Payment,BA0000290390,90.00,
BIS,The Insolvency Service,09/10/2015,Office Supplies and Services,OFFICIAL RECEIVER SERVICES                                                                          ,Staff Payment,BA0000290390,120.00,
BIS,The Insolvency Service,12/10/2015,Travel and Subsistence,BUSINESS SERVICES DIRECTORATE                                                                       ,Staff Payment,BA0000290440,23.10,
BIS,The Insolvency Service,12/10/2015,Travel and Subsistence,FINANCE AND COMMERCIAL,Staff Payment,BA0000290440,4.80,
BIS,The Insolvency Service,12/10/2015,Travel and Subsistence,PEOPLE & CAPABILITY                                                                                 ,Staff Payment,BA0000290440,4.80,
BIS,The Insolvency Service,12/10/2015,Travel and Subsistence,CUSTOMER AND COMMUNICATIONS                                                                         ,Staff Payment,BA0000290440,11.00,
BIS,The Insolvency Service,12/10/2015,Travel and Subsistence,CUSTOMER AND COMMUNICATIONS                                                                         ,Staff Payment,BA0000290440,119.70,
BIS,The Insolvency Service,12/10/2015,Travel and Subsistence,BUSINESS SERVICES DIRECTORATE                                                                       ,Staff Payment,BA0000290440,54.26,
BIS,The Insolvency Service,12/10/2015,Travel and Subsistence,FINANCE AND COMMERCIAL,Staff Payment,BA0000290440,83.11,
BIS,The Insolvency Service,12/10/2015,Travel and Subsistence,PEOPLE & CAPABILITY                                                                                 ,Staff Payment,BA0000290440,29.44,
BIS,The Insolvency Service,12/10/2015,Travel and Subsistence,PEOPLE & CAPABILITY                                                                                 ,Staff Payment,BA0000290440,136.80,
BIS,The Insolvency Service,12/10/2015,Travel and Subsistence,INVESTIGATIONS & ENFORCEMENT                                                                        ,Staff Payment,BA0000290440,6.20,
BIS,The Insolvency Service,12/10/2015,Travel and Subsistence,INVESTIGATIONS & ENFORCEMENT                                                                        ,Staff Payment,BA0000290440,6.90,
BIS,The Insolvency Service,12/10/2015,Travel and Subsistence,INVESTIGATIONS & ENFORCEMENT                                                                        ,Staff Payment,BA0000290440,28.30,
BIS,The Insolvency Service,12/10/2015,Travel and Subsistence,OFFICIAL RECEIVER SERVICES                                                                          ,Staff Payment,BA0000290440,11.50,
BIS,The Insolvency Service,12/10/2015,Travel and Subsistence,BUSINESS SERVICES DIRECTORATE                                                                       ,Staff Payment,BA0000290440,15.00,
BIS,The Insolvency Service,12/10/2015,Travel and Subsistence,BUSINESS SERVICES DIRECTORATE                                                                       ,Staff Payment,BA0000290440,88.20,
BIS,The Insolvency Service,12/10/2015,Travel and Subsistence,BUSINESS SERVICES DIRECTORATE                                                                       ,Staff Payment,BA0000290440,54.99,
BIS,The Insolvency Service,12/10/2015,Travel and Subsistence,BUSINESS SERVICES DIRECTORATE                                                                       ,Staff Payment,BA0000290440,288.90,
BIS,The Insolvency Service,12/10/2015,Travel and Subsistence,BUSINESS SERVICES DIRECTORATE                                                                       ,Staff Payment,BA0000290440,58.00,
BIS,The Insolvency Service,12/10/2015,Travel and Subsistence,FINANCE AND COMMERCIAL                                                                              ,Staff Payment,BA0000290440,38.25,
BIS,The Insolvency Service,12/10/2015,Travel and Subsistence,INVESTIGATIONS & ENFORCEMENT                                                                        ,Staff Payment,BA0000290440,99.90,
BIS,The Insolvency Service,12/10/2015,Travel and Subsistence,INVESTIGATIONS & ENFORCEMENT                                                                        ,Staff Payment,BA0000290440,38.64,
BIS,The Insolvency Service,12/10/2015,Travel and Subsistence,INVESTIGATIONS & ENFORCEMENT                                                                        ,Staff Payment,BA0000290440,1.80,
BIS,The Insolvency Service,12/10/2015,Travel and Subsistence,INVESTIGATIONS & ENFORCEMENT                                                                        ,Staff Payment,BA0000290440,6.00,
BIS,The Insolvency Service,12/10/2015,Travel and Subsistence,OFFICIAL RECEIVER SERVICES                                                                          ,Staff Payment,BA0000290440,79.20,
BIS,The Insolvency Service,12/10/2015,Travel and Subsistence,OFFICIAL RECEIVER SERVICES                                                                          ,Staff Payment,BA0000290440,2.20,
BIS,The Insolvency Service,12/10/2015,Travel and Subsistence,OFFICIAL RECEIVER SERVICES                                                                          ,Staff Payment,BA0000290440,17.10,
BIS,The Insolvency Service,12/10/2015,Travel and Subsistence,OFFICIAL RECEIVER SERVICES                                                                          ,Staff Payment,BA0000290440,3.00,
BIS,The Insolvency Service,12/10/2015,Travel and Subsistence,OFFICIAL RECEIVER SERVICES                                                                          ,Staff Payment,BA0000290440,15.30,
BIS,The Insolvency Service,12/10/2015,Travel and Subsistence,OFFICIAL RECEIVER SERVICES                                                                          ,Staff Payment,BA0000290440,88.20,
BIS,The Insolvency Service,12/10/2015,Travel and Subsistence,OFFICIAL RECEIVER SERVICES                                                                          ,Staff Payment,BA0000290440,36.00,
BIS,The Insolvency Service,12/10/2015,Travel and Subsistence,OFFICIAL RECEIVER SERVICES                                                                          ,Staff Payment,BA0000290440,1.50,
BIS,The Insolvency Service,12/10/2015,Travel and Subsistence,OFFICIAL RECEIVER SERVICES                                                                          ,Staff Payment,BA0000290440,28.80,
BIS,The Insolvency Service,12/10/2015,Travel and Subsistence,OFFICIAL RECEIVER SERVICES                                                                          ,Staff Payment,BA0000290440,36.00,
BIS,The Insolvency Service,12/10/2015,Travel and Subsistence,OFFICIAL RECEIVER SERVICES                                                                          ,Staff Payment,BA0000290440,1.20,
BIS,The Insolvency Service,12/10/2015,Travel and Subsistence,OFFICIAL RECEIVER SERVICES                                                                          ,Staff Payment,BA0000290440,26.10,
BIS,The Insolvency Service,12/10/2015,Travel and Subsistence,OFFICIAL RECEIVER SERVICES                                                                          ,Staff Payment,BA0000290440,2.70,
BIS,The Insolvency Service,12/10/2015,Travel and Subsistence,OFFICIAL RECEIVER SERVICES                                                                          ,Staff Payment,BA0000290440,18.00,
BIS,The Insolvency Service,12/10/2015,Travel and Subsistence,OFFICIAL RECEIVER SERVICES                                                                          ,Staff Payment,BA0000290440,2.00,
BIS,The Insolvency Service,12/10/2015,Travel and Subsistence,OFFICIAL RECEIVER SERVICES                                                                          ,Staff Payment,BA0000290440,2.00,
BIS,The Insolvency Service,12/10/2015,Travel and Subsistence,OFFICIAL RECEIVER SERVICES                                                                          ,Staff Payment,BA0000290440,14.85,
BIS,The Insolvency Service,12/10/2015,Travel and Subsistence,OFFICIAL RECEIVER SERVICES                                                                          ,Staff Payment,BA0000290440,85.40,
BIS,The Insolvency Service,12/10/2015,Travel and Subsistence,OFFICIAL RECEIVER SERVICES                                                                          ,Staff Payment,BA0000290440,10.50,
BIS,The Insolvency Service,12/10/2015,Travel and Subsistence,OFFICIAL RECEIVER SERVICES                                                                          ,Staff Payment,BA0000290440,48.60,
BIS,The Insolvency Service,12/10/2015,Travel and Subsistence,OFFICIAL RECEIVER SERVICES                                                                          ,Staff Payment,BA0000290440,38.25,
BIS,The Insolvency Service,12/10/2015,Travel and Subsistence,OFFICIAL RECEIVER SERVICES                                                                          ,Staff Payment,BA0000290440,10.00,
BIS,The Insolvency Service,12/10/2015,Travel and Subsistence,OFFICIAL RECEIVER SERVICES                                                                          ,Staff Payment,BA0000290440,35.55,
BIS,The Insolvency Service,12/10/2015,Travel and Subsistence,OFFICIAL RECEIVER SERVICES                                                                          ,Staff Payment,BA0000290440,35.55,
BIS,The Insolvency Service,12/10/2015,Travel and Subsistence,OFFICIAL RECEIVER SERVICES                                                                          ,Staff Payment,BA0000290440,35.55,
BIS,The Insolvency Service,12/10/2015,Travel and Subsistence,OFFICIAL RECEIVER SERVICES                                                                          ,Staff Payment,BA0000290440,35.55,
BIS,The Insolvency Service,12/10/2015,Travel and Subsistence,OFFICIAL RECEIVER SERVICES                                                                          ,Staff Payment,BA0000290440,13.60,
BIS,The Insolvency Service,12/10/2015,Travel and Subsistence,OFFICIAL RECEIVER SERVICES                                                                          ,Staff Payment,BA0000290440,262.90,
BIS,The Insolvency Service,12/10/2015,Travel and Subsistence,PEOPLE & CAPABILITY                                                                                 ,Staff Payment,BA0000290440,17.10,
BIS,The Insolvency Service,12/10/2015,Travel and Subsistence,PEOPLE & CAPABILITY                                                                                 ,Staff Payment,BA0000290440,8.10,
BIS,The Insolvency Service,12/10/2015,Travel and Subsistence,PEOPLE & CAPABILITY                                                                                 ,Staff Payment,BA0000290440,18.00,
BIS,The Insolvency Service,12/10/2015,Travel and Subsistence,PEOPLE & CAPABILITY                                                                                 ,Staff Payment,BA0000290440,10.00,
BIS,The Insolvency Service,12/10/2015,Travel and Subsistence,PEOPLE & CAPABILITY                                                                                 ,Staff Payment,BA0000290440,14.20,
BIS,The Insolvency Service,12/10/2015,Travel and Subsistence,OFFICIAL RECEIVER SERVICES                                                                          ,Staff Payment,BA0000290440,11.70,
BIS,The Insolvency Service,12/10/2015,Travel and Subsistence,OFFICIAL RECEIVER SERVICES                                                                          ,Staff Payment,BA0000290440,7.00,
BIS,The Insolvency Service,12/10/2015,Travel and Subsistence,PEOPLE & CAPABILITY                                                                                 ,Staff Payment,BA0000290440,24.00,
BIS,The Insolvency Service,12/10/2015,Travel and Subsistence,PEOPLE & CAPABILITY                                                                                 ,Staff Payment,BA0000290440,13.50,
BIS,The Insolvency Service,12/10/2015,Travel and Subsistence,BUSINESS SERVICES DIRECTORATE                                                                       ,Staff Payment,BA0000290440,23.20,
BIS,The Insolvency Service,12/10/2015,Travel and Subsistence,BUSINESS SERVICES DIRECTORATE                                                                       ,Staff Payment,BA0000290440,49.50,
BIS,The Insolvency Service,12/10/2015,Travel and Subsistence,BUSINESS SERVICES DIRECTORATE                                                                       ,Staff Payment,BA0000290440,23.10,
BIS,The Insolvency Service,12/10/2015,Travel and Subsistence,BUSINESS SERVICES DIRECTORATE                                                                       ,Staff Payment,BA0000290440,21.96,
BIS,The Insolvency Service,12/10/2015,Travel and Subsistence,BUSINESS SERVICES DIRECTORATE                                                                       ,Staff Payment,BA0000290440,22.29,
